Workbook

Sheet fiú (hidden)
B1: 61 m | C1: 60m | D1: 101 m | E1: 100m | F1: 801 m | G1: 800 m | H1: Pont | I1: Távol | J1: Súlyl. | K1: Kisl. | L1: Pont
B2: 6.21 | C2: 6.22 | D2: 9.98 | E2: 10 | F2: 00:01:58 | G2: 00:02:00 | H2: 300 | I2: 1.8 | J2: 3 | K2: 4 | L2: 0 | R2: 180
B3: =C2+0.0051 -> 6.2251 | C3: =C4-(C$52-C$2)/50 -> 6.2396 | D3: 10.0051 | E3: 10.024 | F3: 00:02:00.001 | G3: 00:02:00.200 | H3: 299 | I3: 1.82 | J3: 3.06 | K3: 4.36 | L3: 1 | R3: 182
B4: 6.2447 | C4: 6.2592 | D4: 10.0291 | E4: 10.048 | F4: 00:02:00.201 | G4: 00:02:00.600 | H4: 298 | I4: 1.85 | J4: 3.12 | K4: 4.73 | L4: 2 | R4: 184
B5: 6.2643 | C5: 6.2788 | D5: 10.0531 | E5: 10.072 | F5: 00:02:00.601 | G5: 00:02:00.900 | H5: 297 | I5: 1.87 | J5: 3.17 | K5: 5.09 | L5: 3 | R5: 186
B6: 6.2839 | C6: 6.2984 | D6: 10.0771 | E6: 10.096 | F6: 00:02:00.901 | G6: 00:02:01.200 | H6: 296 | I6: 1.89 | J6: 3.23 | K6: 5.46 | L6: 4 | R6: 187
B7: 6.3035 | C7: 6.318 | D7: 10.1011 | E7: 10.12 | F7: 00:02:01.201 | G7: 00:02:01.500 | H7: 295 | I7: 1.92 | J7: 3.29 | K7: 5.82 | L7: 5 | R7: 189
B8: 6.3231 | C8: 6.3376 | D8: 10.1251 | E8: 10.144 | F8: 00:02:01.501 | G8: 00:02:01.800 | H8: 294 | I8: 1.94 | J8: 3.35 | K8: 6.19 | L8: 6 | R8: 191
B9: 6.3427 | C9: 6.3572 | D9: 10.1491 | E9: 10.168 | F9: 00:02:01.801 | G9: 00:02:02.100 | H9: 293 | I9: 1.96 | J9: 3.4 | K9: 6.55 | L9: 7 | R9: 193
B10: 6.3623 | C10: 6.3768 | D10: 10.1731 | E10: 10.192 | F10: 00:02:02.101 | G10: 00:02:02.400 | H10: 292 | I10: 1.99 | J10: 3.46 | K10: 6.92 | L10: 8 | R10: 195
B11: 6.3819 | C11: 6.3964 | D11: 10.1971 | E11: 10.216 | F11: 00:02:02.401 | G11: 00:02:02.700 | H11: 291 | I11: 2.01 | J11: 3.52 | K11: 7.28 | L11: 9 | R11: 197
B12: 6.4015 | C12: 6.416 | D12: 10.2211 | E12: 10.24 | F12: 00:02:02.701 | G12: 00:02:03 | H12: 290 | I12: 2.03 | J12: 3.58 | K12: 7.65 | L12: 10 | R12: 199
B13: 6.4211 | C13: 6.4356 | D13: 10.2451 | E13: 10.264 | F13: 00:02:03.001 | G13: 00:02:03.300 | H13: 289 | I13: 2.06 | J13: 3.63 | K13: 8.01 | L13: 11 | R13: 201
B14: 6.4407 | C14: 6.4552 | D14: 10.2691 | E14: 10.288 | F14: 00:02:03.301 | G14: 00:02:03.600 | H14: 288 | I14: 2.08 | J14: 3.69 | K14: 8.38 | L14: 12 | R14: 202
B15: 6.4603 | C15: 6.4748 | D15: 10.2931 | E15: 10.312 | F15: 00:02:03.601 | G15: 00:02:03.900 | H15: 287 | I15: 2.1 | J15: 3.75 | K15: 8.74 | L15: 13 | R15: 204
B16: 6.4799 | C16: 6.4944 | D16: 10.3171 | E16: 10.336 | F16: 00:02:03.901 | G16: 00:02:04.200 | H16: 286 | I16: 2.13 | J16: 3.81 | K16: 9.11 | L16: 14 | R16: 206
B17: 6.4995 | C17: 6.514 | D17: 10.3411 | E17: 10.36 | F17: 00:02:04.201 | G17: 00:02:04.500 | H17: 285 | I17: 2.15 | J17: 3.86 | K17: 9.47 | L17: 15 | R17: 208
B18: 6.5191 | C18: 6.5336 | D18: 10.3651 | E18: 10.384 | F18: 00:02:04.501 | G18: 00:02:04.800 | H18: 284 | I18: 2.17 | J18: 3.92 | K18: 9.84 | L18: 16 | R18: 210
B19: 6.5387 | C19: 6.5532 | D19: 10.3891 | E19: 10.408 | F19: 00:02:04.801 | G19: 00:02:05.100 | H19: 283 | I19: 2.2 | J19: 3.98 | K19: 10.2 | L19: 17 | R19: 212
B20: 6.5583 | C20: 6.5728 | D20: 10.4131 | E20: 10.432 | F20: 00:02:05.101 | G20: 00:02:05.400 | H20: 282 | I20: 2.22 | J20: 4.04 | K20: 10.57 | L20: 18 | R20: 214
B21: 6.5779 | C21: 6.5924 | D21: 10.4371 | E21: 10.456 | F21: 00:02:05.401 | G21: 00:02:05.700 | H21: 281 | I21: 2.24 | J21: 4.09 | K21: 10.93 | L21: 19 | R21: 216
B22: 6.5975 | C22: 6.612 | D22: 10.4611 | E22: 10.48 | F22: 00:02:05.701 | G22: 00:02:06 | H22: 280 | I22: 2.27 | J22: 4.15 | K22: 11.3 | L22: 20 | R22: 217
B23: 6.6171 | C23: 6.6316 | D23: 10.4851 | E23: 10.504 | F23: 00:02:06.001 | G23: 00:02:06.300 | H23: 279 | I23: 2.29 | J23: 4.21 | K23: 11.66 | L23: 21 | R23: 219
B24: 6.6367 | C24: 6.6512 | D24: 10.5091 | E24: 10.528 | F24: 00:02:06.301 | G24: 00:02:06.600 | H24: 278 | I24: 2.31 | J24: 4.27 | K24: 12.03 | L24: 22 | R24: 221
B25: 6.6563 | C25: 6.6708 | D25: 10.5331 | E25: 10.552 | F25: 00:02:06.601 | G25: 00:02:06.900 | H25: 277 | I25: 2.34 | J25: 4.32 | K25: 12.39 | L25: 23 | R25: 223
B26: 6.6759 | C26: 6.6904 | D26: 10.5571 | E26: 10.576 | F26: 00:02:06.901 | G26: 00:02:07.200 | H26: 276 | I26: 2.36 | J26: 4.38 | K26: 12.76 | L26: 24 | R26: 225
B27: 6.6955 | C27: 6.71 | D27: 10.5811 | E27: 10.6 | F27: 00:02:07.201 | G27: 00:02:07.500 | H27: 275 | I27: 2.39 | J27: 4.44 | K27: 13.12 | L27: 25 | R27: 227
B28: 6.7151 | C28: 6.7296 | D28: 10.6051 | E28: 10.624 | F28: 00:02:07.501 | G28: 00:02:07.800 | H28: 274 | I28: 2.41 | J28: 4.5 | K28: 13.48 | L28: 26 | R28: 229
B29: 6.7347 | C29: 6.7492 | D29: 10.6291 | E29: 10.648 | F29: 00:02:07.801 | G29: 00:02:08.100 | H29: 273 | I29: 2.43 | J29: 4.56 | K29: 13.85 | L29: 27 | R29: 231
B30: 6.7543 | C30: 6.7688 | D30: 10.6531 | E30: 10.672 | F30: 00:02:08.101 | G30: 00:02:08.400 | H30: 272 | I30: 2.46 | J30: 4.61 | K30: 14.21 | L30: 28 | R30: 232
B31: 6.7739 | C31: 6.7884 | D31: 10.6771 | E31: 10.696 | F31: 00:02:08.401 | G31: 00:02:08.700 | H31: 271 | I31: 2.48 | J31: 4.67 | K31: 14.58 | L31: 29 | R31: 234
B32: 6.7935 | C32: 6.808 | D32: 10.7011 | E32: 10.72 | F32: 00:02:08.701 | G32: 00:02:09 | H32: 270 | I32: 2.5 | J32: 4.73 | K32: 14.94 | L32: 30 | R32: 236
B33: 6.8131 | C33: 6.8276 | D33: 10.7251 | E33: 10.744 | F33: 00:02:09.001 | G33: 00:02:09.300 | H33: 269 | I33: 2.53 | J33: 4.79 | K33: 15.31 | L33: 31 | R33: 238
B34: 6.8327 | C34: 6.8472 | D34: 10.7491 | E34: 10.768 | F34: 00:02:09.301 | G34: 00:02:09.600 | H34: 268 | I34: 2.55 | J34: 4.84 | K34: 15.67 | L34: 32 | R34: 240
B35: 6.8523 | C35: 6.8668 | D35: 10.7731 | E35: 10.792 | F35: 00:02:09.601 | G35: 00:02:09.900 | H35: 267 | I35: 2.57 | J35: 4.9 | K35: 16.04 | L35: 33 | R35: 242
B36: 6.8719 | C36: 6.8864 | D36: 10.7971 | E36: 10.816 | F36: 00:02:09.901 | G36: 00:02:10.200 | H36: 266 | I36: 2.6 | J36: 4.96 | K36: 16.4 | L36: 34 | R36: 244
B37: 6.8915 | C37: 6.906 | D37: 10.8211 | E37: 10.84 | F37: 00:02:10.201 | G37: 00:02:10.500 | H37: 265 | I37: 2.62 | J37: 5.02 | K37: 16.77 | L37: 35 | R37: 246
B38: 6.9111 | C38: 6.9256 | D38: 10.8451 | E38: 10.864 | F38: 00:02:10.501 | G38: 00:02:10.800 | H38: 264 | I38: 2.64 | J38: 5.07 | K38: 17.13 | L38: 36 | R38: 247
B39: 6.9307 | C39: 6.9452 | D39: 10.8691 | E39: 10.888 | F39: 00:02:10.801 | G39: 00:02:11.100 | H39: 263 | I39: 2.67 | J39: 5.13 | K39: 17.5 | L39: 37 | R39: 249
B40: 6.9503 | C40: 6.9648 | D40: 10.8931 | E40: 10.912 | F40: 00:02:11.101 | G40: 00:02:11.400 | H40: 262 | I40: 2.69 | J40: 5.19 | K40: 17.86 | L40: 38 | R40: 251
B41: 6.9699 | C41: 6.9844 | D41: 10.9171 | E41: 10.936 | F41: 00:02:11.401 | G41: 00:02:11.700 | H41: 261 | I41: 2.71 | J41: 5.25 | K41: 18.23 | L41: 39 | R41: 253
B42: 6.9895 | C42: 7.004 | D42: 10.9411 | E42: 10.96 | F42: 00:02:11.701 | G42: 00:02:12 | H42: 260 | I42: 2.74 | J42: 5.3 | K42: 18.59 | L42: 40 | R42: 255
B43: 7.0091 | C43: 7.0236 | D43: 10.9651 | E43: 10.984 | F43: 00:02:12.001 | G43: 00:02:12.300 | H43: 259 | I43: 2.76 | J43: 5.36 | K43: 18.96 | L43: 41 | R43: 257
B44: 7.0287 | C44: 7.0432 | D44: 10.9891 | E44: 11.008 | F44: 00:02:12.301 | G44: 00:02:12.600 | H44: 258 | I44: 2.78 | J44: 5.42 | K44: 19.32 | L44: 42 | R44: 259
B45: 7.0483 | C45: 7.0628 | D45: 11.0131 | E45: 11.032 | F45: 00:02:12.601 | G45: 00:02:12.900 | H45: 257 | I45: 2.81 | J45: 5.48 | K45: 19.69 | L45: 43 | R45: 261
B46: 7.0679 | C46: 7.0824 | D46: 11.0371 | E46: 11.056 | F46: 00:02:12.901 | G46: 00:02:13.200 | H46: 256 | I46: 2.83 | J46: 5.53 | K46: 20.05 | L46: 44 | R46: 262
B47: 7.0875 | C47: 7.102 | D47: 11.0611 | E47: 11.08 | F47: 00:02:13.201 | G47: 00:02:13.500 | H47: 255 | I47: 2.85 | J47: 5.59 | K47: 20.42 | L47: 45 | R47: 264
B48: 7.1071 | C48: 7.1216 | D48: 11.0851 | E48: 11.104 | F48: 00:02:13.501 | G48: 00:02:13.800 | H48: 254 | I48: 2.88 | J48: 5.65 | K48: 20.78 | L48: 46 | R48: 266
B49: 7.1267 | C49: 7.1412 | D49: 11.1091 | E49: 11.128 | F49: 00:02:13.801 | G49: 00:02:14.100 | H49: 253 | I49: 2.9 | J49: 5.71 | K49: 21.15 | L49: 47 | R49: 268
B50: 7.1463 | C50: 7.1608 | D50: 11.1331 | E50: 11.152 | F50: 00:02:14.101 | G50: 00:02:14.400 | H50: 252 | I50: 2.92 | J50: 5.76 | K50: 21.51 | L50: 48 | R50: 270
B51: 7.1659 | C51: 7.1804 | D51: 11.1571 | E51: 11.176 | F51: 00:02:14.401 | G51: 00:02:14.700 | H51: 251 | I51: 2.95 | J51: 5.82 | K51: 21.88 | L51: 49 | R51: 272
B52: 7.1855 | C52: 7.2 | D52: 11.1811 | E52: 11.2 | F52: 00:02:14.701 | G52: 00:02:15 | H52: 250 | I52: 2.97 | J52: 5.88 | K52: 22.24 | L52: 50 | R52: 273
B53: 7.2051 | C53: 7.22 | D53: 11.2051 | E53: 11.23 | F53: 00:02:15.001 | G53: 00:02:15.336 | H53: 249 | I53: 2.99 | J53: 5.93 | K53: 22.57 | L53: 51 | R53: 275
B54: 7.2251 | C54: 7.24 | D54: 11.2351 | E54: 11.25 | F54: 00:02:15.341 | G54: 00:02:15.672 | H54: 248 | I54: 3.01 | J54: 5.99 | K54: 22.91 | L54: 52 | R54: 276
B55: 7.2451 | C55: 7.26 | D55: 11.2551 | E55: 11.28 | F55: 00:02:15.671 | G55: 00:02:16.008 | H55: 247 | I55: 3.03 | J55: 6.04 | K55: 23.24 | L55: 53 | R55: 278
B56: 7.2651 | C56: 7.28 | D56: 11.2851 | E56: 11.3 | F56: 00:02:16.011 | G56: 00:02:16.344 | H56: 246 | I56: 3.06 | J56: 6.09 | K56: 23.58 | L56: 54 | R56: 280
B57: 7.2851 | C57: 7.3 | D57: 11.3051 | E57: 11.33 | F57: 00:02:16.341 | G57: 00:02:16.680 | H57: 245 | I57: 3.08 | J57: 6.14 | K57: 23.91 | L57: 55 | R57: 282
B58: 7.3051 | C58: 7.32 | D58: 11.3351 | E58: 11.35 | F58: 00:02:16.681 | G58: 00:02:17.016 | H58: 244 | I58: 3.1 | J58: 6.2 | K58: 24.25 | L58: 56 | R58: 283
B59: 7.3251 | C59: 7.33 | D59: 11.3551 | E59: 11.38 | F59: 00:02:17.021 | G59: 00:02:17.352 | H59: 243 | I59: 3.12 | J59: 6.25 | K59: 24.58 | L59: 57 | R59: 285
B60: 7.3351 | C60: 7.35 | D60: 11.3851 | E60: 11.4 | F60: 00:02:17.351 | G60: 00:02:17.688 | H60: 242 | I60: 3.14 | J60: 6.3 | K60: 24.92 | L60: 58 | R60: 287
B61: 7.3551 | C61: 7.37 | D61: 11.4051 | E61: 11.43 | F61: 00:02:17.691 | G61: 00:02:18.024 | H61: 241 | I61: 3.16 | J61: 6.36 | K61: 25.25 | L61: 59 | R61: 288
B62: 7.3751 | C62: 7.39 | D62: 11.4351 | E62: 11.45 | F62: 00:02:18.021 | G62: 00:02:18.360 | H62: 240 | I62: 3.19 | J62: 6.41 | K62: 25.58 | L62: 60 | R62: 290
B63: 7.3951 | C63: 7.41 | D63: 11.4551 | E63: 11.48 | F63: 00:02:18.361 | G63: 00:02:18.696 | H63: 239 | I63: 3.21 | J63: 6.46 | K63: 25.92 | L63: 61 | R63: 292
B64: 7.4151 | C64: 7.43 | D64: 11.4851 | E64: 11.5 | F64: 00:02:18.701 | G64: 00:02:19.032 | H64: 238 | I64: 3.23 | J64: 6.51 | K64: 26.25 | L64: 62 | R64: 294
B65: 7.4351 | C65: 7.45 | D65: 11.5051 | E65: 11.53 | F65: 00:02:19.031 | G65: 00:02:19.368 | H65: 237 | I65: 3.25 | J65: 6.57 | K65: 26.59 | L65: 63 | R65: 295
B66: 7.4551 | C66: 7.47 | D66: 11.5351 | E66: 11.55 | F66: 00:02:19.371 | G66: 00:02:19.704 | H66: 236 | I66: 3.27 | J66: 6.62 | K66: 26.92 | L66: 64 | R66: 297
B67: =C66+0.0051 -> 7.4751 | C67: 7.49 | D67: 11.5551 | E67: 11.58 | F67: 00:02:19.701 | G67: 00:02:20.040 | H67: 235 | I67: 3.29 | J67: 6.67 | K67: 27.26 | L67: 65 | R67: 299
B68: 7.4951 | C68: 7.51 | D68: 11.5851 | E68: 11.6 | F68: 00:02:20.041 | G68: 00:02:20.376 | H68: 234 | I68: 3.32 | J68: 6.72 | K68: 27.59 | L68: 66 | R68: 300
B69: 7.5151 | C69: 7.53 | D69: 11.6051 | E69: 11.63 | F69: 00:02:20.381 | G69: 00:02:20.712 | H69: 233 | I69: 3.34 | J69: 6.78 | K69: 27.92 | L69: 67 | R69: 302
B70: 7.5351 | C70: 7.55 | D70: 11.6351 | E70: 11.65 | F70: 00:02:20.711 | G70: 00:02:21.048 | H70: 232 | I70: 3.36 | J70: 6.83 | K70: 28.26 | L70: 68 | R70: 304
B71: 7.5551 | C71: 7.56 | D71: 11.6551 | E71: 11.68 | F71: 00:02:21.049 | G71: 00:02:21.384 | H71: 231 | I71: 3.38 | J71: 6.88 | K71: 28.59 | L71: 69 | R71: 306
B72: 7.5651 | C72: 7.58 | D72: 11.6851 | E72: 11.7 | F72: 00:02:21.386 | G72: 00:02:21.720 | H72: 230 | I72: 3.4 | J72: 6.94 | K72: 28.93 | L72: 70 | R72: 307
B73: 7.5851 | C73: 7.6 | D73: 11.7051 | E73: 11.73 | F73: 00:02:21.722 | G73: 00:02:22.056 | H73: 229 | I73: 3.42 | J73: 6.99 | K73: 29.26 | L73: 71 | R73: 309
B74: 7.6051 | C74: 7.62 | D74: 11.7351 | E74: 11.75 | F74: 00:02:22.261 | G74: 00:02:22.392 | H74: 228 | I74: 3.45 | J74: 7.04 | K74: 29.6 | L74: 72 | R74: 311
B75: 7.6251 | C75: 7.64 | D75: 11.7551 | E75: 11.78 | F75: 00:02:22.395 | G75: 00:02:22.728 | H75: 227 | I75: 3.47 | J75: 7.09 | K75: 29.93 | L75: 73 | R75: 312
B76: 7.6451 | C76: 7.66 | D76: 11.7851 | E76: 11.8 | F76: 00:02:22.731 | G76: 00:02:23.064 | H76: 226 | I76: 3.49 | J76: 7.15 | K76: 30.27 | L76: 74 | R76: 314
B77: 7.6651 | C77: 7.68 | D77: 11.8051 | E77: 11.83 | F77: 00:02:23.066 | G77: 00:02:23.400 | H77: 225 | I77: 3.51 | J77: 7.2 | K77: 30.6 | L77: 75 | R77: 316
B78: 7.6851 | C78: 7.7 | D78: 11.8351 | E78: 11.85 | F78: 00:02:23.402 | G78: 00:02:23.736 | H78: 224 | I78: 3.53 | J78: 7.25 | K78: 30.93 | L78: 76 | R78: 318
B79: 7.7051 | C79: 7.72 | D79: 11.8551 | E79: 11.88 | F79: 00:02:23.741 | G79: 00:02:24.072 | H79: 223 | I79: 3.55 | J79: 7.31 | K79: 31.27 | L79: 77 | R79: 319
B80: 7.7251 | C80: 7.74 | D80: 11.8851 | E80: 11.9 | F80: 00:02:24.073 | G80: 00:02:24.408 | H80: 222 | I80: 3.57 | J80: 7.36 | K80: 31.6 | L80: 78 | R80: 321
B81: 7.7451 | C81: 7.76 | D81: 11.9051 | E81: 11.93 | F81: 00:02:24.411 | G81: 00:02:24.744 | H81: 221 | I81: 3.6 | J81: 7.41 | K81: 31.94 | L81: 79 | R81: 323
B82: 7.7651 | C82: 7.78 | D82: 11.9351 | E82: 11.95 | F82: 00:02:24.745 | G82: 00:02:25.080 | H82: 220 | I82: 3.62 | J82: 7.46 | K82: 32.27 | L82: 80 | R82: 324
B83: 7.7851 | C83: 7.8 | D83: 11.9551 | E83: 11.98 | F83: 00:02:25.081 | G83: 00:02:25.416 | H83: 219 | I83: 3.64 | J83: 7.52 | K83: 32.61 | L83: 81 | R83: 326
B84: 7.8051 | C84: 7.81 | D84: 11.9851 | E84: 12 | F84: 00:02:25.421 | G84: 00:02:25.752 | H84: 218 | I84: 3.66 | J84: 7.57 | K84: 32.94 | L84: 82 | R84: 328
B85: 7.8151 | C85: 7.83 | D85: 12.0051 | E85: 12.03 | F85: 00:02:25.757 | G85: 00:02:26.088 | H85: 217 | I85: 3.68 | J85: 7.62 | K85: 33.28 | L85: 83 | R85: 330
B86: 7.8351 | C86: 7.85 | D86: 12.0351 | E86: 12.05 | F86: 00:02:26.093 | G86: 00:02:26.424 | H86: 216 | I86: 3.7 | J86: 7.68 | K86: 33.61 | L86: 84 | R86: 331
B87: 7.8551 | C87: 7.87 | D87: 12.0551 | E87: 12.08 | F87: 00:02:26.429 | G87: 00:02:26.760 | H87: 215 | I87: 3.73 | J87: 7.73 | K87: 33.94 | L87: 85 | R87: 333
B88: 7.8751 | C88: 7.89 | D88: 12.0851 | E88: 12.1 | F88: 00:02:26.765 | G88: 00:02:27.096 | H88: 214 | I88: 3.75 | J88: 7.78 | K88: 34.28 | L88: 86 | R88: 335
B89: 7.8951 | C89: 7.91 | D89: 12.1051 | E89: 12.13 | F89: 00:02:27.101 | G89: 00:02:27.432 | H89: 213 | I89: 3.77 | J89: 7.83 | K89: 34.61 | L89: 87 | R89: 336
B90: 7.9151 | C90: 7.93 | D90: 12.1351 | E90: 12.15 | F90: 00:02:27.437 | G90: 00:02:27.768 | H90: 212 | I90: 3.79 | J90: 7.89 | K90: 34.95 | L90: 88 | R90: 338
B91: 7.9351 | C91: 7.95 | D91: 12.1551 | E91: 12.18 | F91: 00:02:27.773 | G91: 00:02:28.104 | H91: 211 | I91: 3.81 | J91: 7.94 | K91: 35.28 | L91: 89 | R91: 340
B92: 7.9551 | C92: 7.97 | D92: 12.1851 | E92: 12.2 | F92: 00:02:28.109 | G92: 00:02:28.440 | H92: 210 | I92: 3.83 | J92: 7.99 | K92: 35.62 | L92: 90 | R92: 342
B93: 7.9751 | C93: 7.99 | D93: 12.2051 | E93: 12.23 | F93: 00:02:28.445 | G93: 00:02:28.776 | H93: 209 | I93: 3.86 | J93: 8.04 | K93: 35.95 | L93: 91 | R93: 343
B94: 7.9951 | C94: 8.01 | D94: 12.2351 | E94: 12.25 | F94: 00:02:28.781 | G94: 00:02:29.112 | H94: 208 | I94: 3.88 | J94: 8.1 | K94: 36.28 | L94: 92 | R94: 345
B95: 8.0151 | C95: 8.03 | D95: 12.2551 | E95: 12.28 | F95: 00:02:29.117 | G95: 00:02:29.448 | H95: 207 | I95: 3.9 | J95: 8.15 | K95: 36.62 | L95: 93 | R95: 347
B96: 8.0351 | C96: 8.04 | D96: 12.2851 | E96: 12.3 | F96: 00:02:29.453 | G96: 00:02:29.784 | H96: 206 | I96: 3.92 | J96: 8.2 | K96: 36.95 | L96: 94 | R96: 349
B97: 8.0451 | C97: 8.06 | D97: 12.3051 | E97: 12.33 | F97: 00:02:29.789 | G97: 00:02:30.120 | H97: 205 | I97: 3.94 | J97: 8.26 | K97: 37.29 | L97: 95 | R97: 350
B98: 8.0651 | C98: 8.08 | D98: 12.3351 | E98: 12.35 | F98: 00:02:30.125 | G98: 00:02:30.456 | H98: 204 | I98: 3.96 | J98: 8.31 | K98: 37.62 | L98: 96 | R98: 352
B99: 8.0851 | C99: 8.1 | D99: 12.3551 | E99: 12.38 | F99: 00:02:30.461 | G99: 00:02:30.792 | H99: 203 | I99: 3.99 | J99: 8.36 | K99: 37.96 | L99: 97 | R99: 354
B100: 8.1051 | C100: 8.12 | D100: 12.3851 | E100: 12.4 | F100: 00:02:30.797 | G100: 00:02:31.128 | H100: 202 | I100: 4.01 | J100: 8.41 | K100: 38.29 | L100: 98 | R100: 355
B101: 8.1251 | C101: 8.14 | D101: 12.4051 | E101: 12.43 | F101: 00:02:31.133 | G101: 00:02:31.464 | H101: 201 | I101: 4.03 | J101: 8.47 | K101: 38.63 | L101: 99 | R101: 357
B102: 8.1451 | C102: 8.16 | D102: 12.4351 | E102: 12.45 | F102: 00:02:31.469 | G102: 00:02:31.800 | H102: 200 | I102: 4.05 | J102: 8.52 | K102: 38.96 | L102: 100 | R102: 359
B103: 8.1651 | C103: 8.18 | D103: 12.4551 | E103: 12.48 | F103: 00:02:31.805 | G103: 00:02:32.178 | H103: 199 | I103: 4.07 | J103: 8.57 | K103: 39.26 | L103: 101 | R103: 361
B104: 8.1851 | C104: 8.2 | D104: 12.4851 | E104: 12.51 | F104: 00:02:32.183 | G104: 00:02:32.556 | H104: 198 | I104: 4.09 | J104: 8.62 | K104: 39.57 | L104: 102 | R104: 362
B105: 8.2051 | C105: 8.22 | D105: 12.5151 | E105: 12.53 | F105: 00:02:32.561 | G105: 00:02:32.934 | H105: 197 | I105: 4.11 | J105: 8.66 | K105: 39.87 | L105: 103 | R105: 364
B106: 8.2251 | C106: 8.25 | D106: 12.5351 | E106: 12.56 | F106: 00:02:32.939 | G106: 00:02:33.312 | H106: 196 | I106: 4.13 | J106: 8.71 | K106: 40.18 | L106: 104 | R106: 365
B107: 8.2551 | C107: 8.27 | D107: 12.5651 | E107: 12.59 | F107: 00:02:33.317 | G107: 00:02:33.690 | H107: 195 | I107: 4.15 | J107: 8.76 | K107: 40.48 | L107: 105 | R107: 367
B108: 8.2751 | C108: 8.29 | D108: 12.5951 | E108: 12.62 | F108: 00:02:33.695 | G108: 00:02:34.068 | H108: 194 | I108: 4.17 | J108: 8.81 | K108: 40.78 | L108: 106 | R108: 368
B109: 8.2951 | C109: 8.31 | D109: 12.6251 | E109: 12.65 | F109: 00:02:34.073 | G109: 00:02:34.446 | H109: 193 | I109: 4.19 | J109: 8.86 | K109: 41.09 | L109: 107 | R109: 370
B110: 8.3151 | C110: 8.33 | D110: 12.6551 | E110: 12.67 | F110: 00:02:34.451 | G110: 00:02:34.824 | H110: 192 | I110: 4.21 | J110: 8.9 | K110: 41.39 | L110: 108 | R110: 371
B111: 8.3351 | C111: 8.35 | D111: 12.6751 | E111: 12.7 | F111: 00:02:34.829 | G111: 00:02:35.202 | H111: 191 | I111: 4.23 | J111: 8.95 | K111: 41.7 | L111: 109 | R111: 373
B112: 8.3551 | C112: 8.38 | D112: 12.7051 | E112: 12.73 | F112: 00:02:35.207 | G112: 00:02:35.580 | H112: 190 | I112: 4.25 | J112: 9 | K112: 42 | L112: 110 | R112: 375
B113: 8.3851 | C113: 8.4 | D113: 12.7351 | E113: 12.76 | F113: 00:02:35.585 | G113: 00:02:35.958 | H113: 189 | I113: 4.27 | J113: 9.05 | K113: 42.3 | L113: 111 | R113: 376
B114: 8.4051 | C114: 8.42 | D114: 12.7651 | E114: 12.79 | F114: 00:02:35.963 | G114: 00:02:36.336 | H114: 188 | I114: 4.29 | J114: 9.1 | K114: 42.61 | L114: 112 | R114: 378
B115: 8.4251 | C115: 8.44 | D115: 12.7951 | E115: 12.81 | F115: 00:02:36.341 | G115: 00:02:36.714 | H115: 187 | I115: 4.3 | J115: 9.14 | K115: 42.91 | L115: 113 | R115: 379
B116: 8.4451 | C116: 8.46 | D116: 12.8151 | E116: 12.84 | F116: 00:02:36.719 | G116: 00:02:37.092 | H116: 186 | I116: 4.32 | J116: 9.19 | K116: 43.22 | L116: 114 | R116: 381
B117: 8.4651 | C117: 8.48 | D117: 12.8451 | E117: 12.87 | F117: 00:02:37.097 | G117: 00:02:37.470 | H117: 185 | I117: 4.34 | J117: 9.24 | K117: 43.52 | L117: 115 | R117: 382
B118: 8.4851 | C118: 8.51 | D118: 12.8751 | E118: 12.9 | F118: 00:02:37.475 | G118: 00:02:37.848 | H118: 184 | I118: 4.36 | J118: 9.29 | K118: 43.82 | L118: 116 | R118: 384
B119: 8.5151 | C119: 8.53 | D119: 12.9051 | E119: 12.93 | F119: 00:02:37.853 | G119: 00:02:38.226 | H119: 183 | I119: 4.38 | J119: 9.34 | K119: 44.13 | L119: 117 | R119: 386
B120: 8.5351 | C120: 8.55 | D120: 12.9351 | E120: 12.95 | F120: 00:02:38.231 | G120: 00:02:38.604 | H120: 182 | I120: 4.4 | J120: 9.38 | K120: 44.43 | L120: 118 | R120: 387
B121: 8.5551 | C121: 8.57 | D121: 12.9551 | E121: 12.98 | F121: 00:02:38.609 | G121: 00:02:38.982 | H121: 181 | I121: 4.42 | J121: 9.43 | K121: 44.74 | L121: 119 | R121: 389
B122: 8.5751 | C122: 8.59 | D122: 12.9851 | E122: 13.01 | F122: 00:02:38.987 | G122: 00:02:39.360 | H122: 180 | I122: 4.44 | J122: 9.48 | K122: 45.04 | L122: 120 | R122: 390
B123: 8.5951 | C123: 8.61 | D123: 13.0151 | E123: 13.04 | F123: 00:02:39.365 | G123: 00:02:39.738 | H123: 179 | I123: 4.46 | J123: 9.53 | K123: 45.34 | L123: 121 | R123: 392
B124: 8.6151 | C124: 8.64 | D124: 13.0451 | E124: 13.07 | F124: 00:02:39.743 | G124: 00:02:40.116 | H124: 178 | I124: 4.48 | J124: 9.58 | K124: 45.65 | L124: 122 | R124: 393
B125: 8.6451 | C125: 8.66 | D125: 13.0751 | E125: 13.09 | F125: 00:02:40.121 | G125: 00:02:40.494 | H125: 177 | I125: 4.5 | J125: 9.62 | K125: 45.95 | L125: 123 | R125: 395
B126: 8.6651 | C126: 8.68 | D126: 13.0951 | E126: 13.12 | F126: 00:02:40.499 | G126: 00:02:40.872 | H126: 176 | I126: 4.52 | J126: 9.67 | K126: 46.26 | L126: 124 | R126: 396
B127: 8.6851 | C127: 8.7 | D127: 13.1251 | E127: 13.15 | F127: 00:02:40.877 | G127: 00:02:41.250 | H127: 175 | I127: 4.54 | J127: 9.72 | K127: 46.56 | L127: 125 | R127: 398
B128: 8.7051 | C128: 8.72 | D128: 13.1551 | E128: 13.18 | F128: 00:02:41.255 | G128: 00:02:41.628 | H128: 174 | I128: 4.56 | J128: 9.77 | K128: 46.86 | L128: 126 | R128: 400
B129: 8.7251 | C129: 8.74 | D129: 13.1851 | E129: 13.21 | F129: 00:02:41.633 | G129: 00:02:42.006 | H129: 173 | I129: 4.58 | J129: 9.82 | K129: 47.17 | L129: 127 | R129: 401
B130: 8.7451 | C130: 8.76 | D130: 13.2151 | E130: 13.23 | F130: 00:02:42.011 | G130: 00:02:42.384 | H130: 172 | I130: 4.6 | J130: 9.86 | K130: 47.47 | L130: 128 | R130: 403
B131: =C130+0.0051 -> 8.7651 | C131: 8.79 | D131: 13.2351 | E131: 13.26 | F131: 00:02:42.389 | G131: 00:02:42.762 | H131: 171 | I131: 4.62 | J131: 9.91 | K131: 47.78 | L131: 129 | R131: 404
B132: 8.7951 | C132: 8.81 | D132: 13.2651 | E132: 13.29 | F132: 00:02:42.767 | G132: 00:02:43.140 | H132: 170 | I132: 4.64 | J132: 9.96 | K132: 48.08 | L132: 130 | R132: 406
B133: 8.8151 | C133: 8.83 | D133: 13.2951 | E133: 13.32 | F133: 00:02:43.145 | G133: 00:02:43.518 | H133: 169 | I133: 4.66 | J133: 10.01 | K133: 48.38 | L133: 131 | R133: 407
B134: 8.8351 | C134: 8.85 | D134: 13.3251 | E134: 13.35 | F134: 00:02:43.523 | G134: 00:02:43.896 | H134: 168 | I134: 4.68 | J134: 10.06 | K134: 48.69 | L134: 132 | R134: 409
B135: 8.8551 | C135: 8.87 | D135: 13.3551 | E135: 13.37 | F135: 00:02:43.901 | G135: 00:02:44.274 | H135: 167 | I135: 4.7 | J135: 10.1 | K135: 48.99 | L135: 133 | R135: 410
B136: 8.8751 | C136: 8.89 | D136: 13.3751 | E136: 13.4 | F136: 00:02:44.279 | G136: 00:02:44.652 | H136: 166 | I136: 4.72 | J136: 10.15 | K136: 49.3 | L136: 134 | R136: 412
B137: 8.8951 | C137: 8.92 | D137: 13.4051 | E137: 13.43 | F137: 00:02:44.657 | G137: 00:02:45.030 | H137: 165 | I137: 4.74 | J137: 10.2 | K137: 49.6 | L137: 135 | R137: 414
B138: 8.9251 | C138: 8.94 | D138: 13.4351 | E138: 13.46 | F138: 00:02:45.035 | G138: 00:02:45.408 | H138: 164 | I138: 4.76 | J138: 10.25 | K138: 49.9 | L138: 136 | R138: 415
B139: 8.9451 | C139: 8.96 | D139: 13.4651 | E139: 13.49 | F139: 00:02:45.413 | G139: 00:02:45.786 | H139: 163 | I139: 4.78 | J139: 10.3 | K139: 50.21 | L139: 137 | R139: 417
B140: 8.9651 | C140: 8.98 | D140: 13.4951 | E140: 13.51 | F140: 00:02:45.791 | G140: 00:02:46.164 | H140: 162 | I140: 4.79 | J140: 10.34 | K140: 50.51 | L140: 138 | R140: 418
B141: 8.9851 | C141: 9 | D141: 13.5151 | E141: 13.54 | F141: 00:02:46.169 | G141: 00:02:46.542 | H141: 161 | I141: 4.81 | J141: 10.39 | K141: 50.82 | L141: 139 | R141: 420
B142: 9.0051 | C142: 9.02 | D142: 13.5451 | E142: 13.57 | F142: 00:02:46.547 | G142: 00:02:46.920 | H142: 160 | I142: 4.83 | J142: 10.44 | K142: 51.12 | L142: 140 | R142: 421
B143: 9.0251 | C143: 9.05 | D143: 13.5751 | E143: 13.6 | F143: 00:02:46.925 | G143: 00:02:47.298 | H143: 159 | I143: 4.85 | J143: 10.49 | K143: 51.42 | L143: 141 | R143: 423
B144: 9.0551 | C144: 9.07 | D144: 13.6051 | E144: 13.63 | F144: 00:02:47.303 | G144: 00:02:47.676 | H144: 158 | I144: 4.87 | J144: 10.54 | K144: 51.73 | L144: 142 | R144: 425
B145: 9.0751 | C145: 9.09 | D145: 13.6351 | E145: 13.65 | F145: 00:02:47.681 | G145: 00:02:48.054 | H145: 157 | I145: 4.89 | J145: 10.58 | K145: 52.03 | L145: 143 | R145: 426
B146: 9.0951 | C146: 9.11 | D146: 13.6551 | E146: 13.68 | F146: 00:02:48.059 | G146: 00:02:48.432 | H146: 156 | I146: 4.91 | J146: 10.63 | K146: 52.34 | L146: 144 | R146: 428
B147: 9.1151 | C147: 9.13 | D147: 13.6851 | E147: 13.71 | F147: 00:02:48.437 | G147: 00:02:48.810 | H147: 155 | I147: 4.93 | J147: 10.68 | K147: 52.64 | L147: 145 | R147: 429
B148: 9.1351 | C148: 9.15 | D148: 13.7151 | E148: 13.74 | F148: 00:02:48.815 | G148: 00:02:49.188 | H148: 154 | I148: 4.95 | J148: 10.73 | K148: 52.94 | L148: 146 | R148: 431
B149: 9.1551 | C149: 9.18 | D149: 13.7451 | E149: 13.77 | F149: 00:02:49.193 | G149: 00:02:49.566 | H149: 153 | I149: 4.97 | J149: 10.78 | K149: 53.25 | L149: 147 | R149: 432
B150: 9.1851 | C150: 9.2 | D150: 13.7751 | E150: 13.79 | F150: 00:02:49.571 | G150: 00:02:49.944 | H150: 152 | I150: 4.99 | J150: 10.82 | K150: 53.55 | L150: 148 | R150: 434
B151: 9.2051 | C151: 9.22 | D151: 13.7951 | E151: 13.82 | F151: 00:02:49.949 | G151: 00:02:50.322 | H151: 151 | I151: 5.01 | J151: 10.87 | K151: 53.86 | L151: 149 | R151: 435
B152: 9.2251 | C152: 9.24 | D152: 13.8251 | E152: 13.85 | F152: 00:02:50.327 | G152: 00:02:50.700 | H152: 150 | I152: 5.03 | J152: 10.92 | K152: 54.16 | L152: 150 | R152: 437
B153: 9.2451 | C153: 9.26 | D153: 13.8551 | E153: 13.88 | F153: 00:02:50.705 | G153: 00:02:51.120 | H153: 149 | I153: 5.05 | J153: 10.96 | K153: 54.43 | L153: 151 | R153: 438
B154: 9.2651 | C154: 9.29 | D154: 13.8851 | E154: 13.91 | F154: 00:02:51.125 | G154: 00:02:51.540 | H154: 148 | I154: 5.07 | J154: 11.01 | K154: 54.71 | L154: 152 | R154: 440
B155: 9.2951 | C155: 9.31 | D155: 13.9151 | E155: 13.94 | F155: 00:02:51.545 | G155: 00:02:51.960 | H155: 147 | I155: 5.08 | J155: 11.05 | K155: 54.98 | L155: 153 | R155: 441
B156: 9.3151 | C156: 9.34 | D156: 13.9451 | E156: 13.97 | F156: 00:02:51.965 | G156: 00:02:52.380 | H156: 146 | I156: 5.1 | J156: 11.09 | K156: 55.25 | L156: 154 | R156: 443
B157: 9.3451 | C157: 9.36 | D157: 13.9751 | E157: 14.01 | F157: 00:02:52.385 | G157: 00:02:52.800 | H157: 145 | I157: 5.12 | J157: 11.14 | K157: 55.53 | L157: 155 | R157: 444
B158: 9.3651 | C158: 9.38 | D158: 14.0151 | E158: 14.04 | F158: 00:02:52.805 | G158: 00:02:53.220 | H158: 144 | I158: 5.14 | J158: 11.18 | K158: 55.8 | L158: 156 | R158: 445
B159: 9.3851 | C159: 9.41 | D159: 14.0451 | E159: 14.07 | F159: 00:02:53.225 | G159: 00:02:53.640 | H159: 143 | I159: 5.15 | J159: 11.22 | K159: 56.08 | L159: 157 | R159: 447
B160: 9.4151 | C160: 9.43 | D160: 14.0751 | E160: 14.1 | F160: 00:02:53.645 | G160: 00:02:54.060 | H160: 142 | I160: 5.17 | J160: 11.27 | K160: 56.35 | L160: 158 | R160: 448
B161: 9.4351 | C161: 9.46 | D161: 14.1051 | E161: 14.13 | F161: 00:02:54.065 | G161: 00:02:54.480 | H161: 141 | I161: 5.19 | J161: 11.31 | K161: 56.62 | L161: 159 | R161: 450
B162: 9.4651 | C162: 9.48 | D162: 14.1351 | E162: 14.16 | F162: 00:02:54.485 | G162: 00:02:54.900 | H162: 140 | I162: 5.21 | J162: 11.35 | K162: 56.9 | L162: 160 | R162: 451
B163: 9.4851 | C163: 9.5 | D163: 14.1651 | E163: 14.19 | F163: 00:02:54.905 | G163: 00:02:55.320 | H163: 139 | I163: 5.22 | J163: 11.4 | K163: 57.17 | L163: 161 | R163: 452
B164: 9.5051 | C164: 9.53 | D164: 14.1951 | E164: 14.22 | F164: 00:02:55.325 | G164: 00:02:55.740 | H164: 138 | I164: 5.24 | J164: 11.44 | K164: 57.44 | L164: 162 | R164: 454
B165: 9.5351 | C165: 9.55 | D165: 14.2251 | E165: 14.26 | F165: 00:02:55.745 | G165: 00:02:56.160 | H165: 137 | I165: 5.26 | J165: 11.48 | K165: 57.72 | L165: 163 | R165: 455
B166: 9.5551 | C166: 9.58 | D166: 14.2651 | E166: 14.29 | F166: 00:02:56.165 | G166: 00:02:56.580 | H166: 136 | I166: 5.28 | J166: 11.52 | K166: 57.99 | L166: 164 | R166: 457
B167: 9.5851 | C167: 9.6 | D167: 14.2951 | E167: 14.32 | F167: 00:02:56.585 | G167: 00:02:57 | H167: 135 | I167: 5.29 | J167: 11.57 | K167: 58.26 | L167: 165 | R167: 458
B168: 9.6051 | C168: 9.62 | D168: 14.3251 | E168: 14.35 | F168: 00:02:57.005 | G168: 00:02:57.420 | H168: 134 | I168: 5.31 | J168: 11.61 | K168: 58.54 | L168: 166 | R168: 459
B169: 9.6251 | C169: 9.65 | D169: 14.3551 | E169: 14.38 | F169: 00:02:57.425 | G169: 00:02:57.840 | H169: 133 | I169: 5.33 | J169: 11.65 | K169: 58.81 | L169: 167 | R169: 461
B170: 9.6551 | C170: 9.67 | D170: 14.3851 | E170: 14.41 | F170: 00:02:57.845 | G170: 00:02:58.260 | H170: 132 | I170: 5.35 | J170: 11.7 | K170: 59.08 | L170: 168 | R170: 462
B171: 9.6751 | C171: 9.7 | D171: 14.4151 | E171: 14.44 | F171: 00:02:58.265 | G171: 00:02:58.680 | H171: 131 | I171: 5.36 | J171: 11.74 | K171: 59.36 | L171: 169 | R171: 464
B172: 9.7051 | C172: 9.72 | D172: 14.4451 | E172: 14.47 | F172: 00:02:58.685 | G172: 00:02:59.100 | H172: 130 | I172: 5.38 | J172: 11.78 | K172: 59.63 | L172: 170 | R172: 465
B173: 9.7251 | C173: 9.74 | D173: 14.4751 | E173: 14.51 | F173: 00:02:59.105 | G173: 00:02:59.520 | H173: 129 | I173: 5.4 | J173: 11.83 | K173: 59.91 | L173: 171 | R173: 466
B174: 9.7451 | C174: 9.77 | D174: 14.5151 | E174: 14.54 | F174: 00:02:59.525 | G174: 00:02:59.940 | H174: 128 | I174: 5.42 | J174: 11.87 | K174: 60.18 | L174: 172 | R174: 468
B175: 9.7751 | C175: 9.79 | D175: 14.5451 | E175: 14.57 | F175: 00:02:59.945 | G175: 00:03:00.360 | H175: 127 | I175: 5.43 | J175: 11.91 | K175: 60.45 | L175: 173 | R175: 469
B176: 9.7951 | C176: 9.82 | D176: 14.5751 | E176: 14.6 | F176: 00:03:00.365 | G176: 00:03:00.780 | H176: 126 | I176: 5.45 | J176: 11.96 | K176: 60.73 | L176: 174 | R176: 471
B177: 9.8251 | C177: 9.84 | D177: 14.6051 | E177: 14.63 | F177: 00:03:00.785 | G177: 00:03:01.200 | H177: 125 | I177: 5.47 | J177: 12 | K177: 61 | L177: 175 | R177: 472
B178: 9.8451 | C178: 9.86 | D178: 14.6351 | E178: 14.66 | F178: 00:03:01.205 | G178: 00:03:01.620 | H178: 124 | I178: 5.49 | J178: 12.04 | K178: 61.27 | L178: 176 | R178: 474
B179: 9.8651 | C179: 9.89 | D179: 14.6651 | E179: 14.69 | F179: 00:03:01.625 | G179: 00:03:02.040 | H179: 123 | I179: 5.51 | J179: 12.09 | K179: 61.55 | L179: 177 | R179: 475
B180: 9.8951 | C180: 9.91 | D180: 14.6951 | E180: 14.72 | F180: 00:03:02.045 | G180: 00:03:02.460 | H180: 122 | I180: 5.52 | J180: 12.13 | K180: 61.82 | L180: 178 | R180: 476
B181: 9.9151 | C181: 9.94 | D181: 14.7251 | E181: 14.75 | F181: 00:03:02.465 | G181: 00:03:02.880 | H181: 121 | I181: 5.54 | J181: 12.17 | K181: 62.09 | L181: 179 | R181: 478
B182: 9.9451 | C182: 9.96 | D182: 14.7551 | E182: 14.79 | F182: 00:03:02.885 | G182: 00:03:03.300 | H182: 120 | I182: 5.56 | J182: 12.22 | K182: 62.37 | L182: 180 | R182: 479
B183: 9.9651 | C183: 9.98 | D183: 14.7951 | E183: 14.82 | F183: 00:03:03.305 | G183: 00:03:03.720 | H183: 119 | I183: 5.58 | J183: 12.26 | K183: 62.64 | L183: 181 | R183: 481
B184: 9.9851 | C184: 10.01 | D184: 14.8251 | E184: 14.85 | F184: 00:03:03.725 | G184: 00:03:04.140 | H184: 118 | I184: 5.59 | J184: 12.3 | K184: 62.92 | L184: 182 | R184: 482
B185: 10.0151 | C185: 10.03 | D185: 14.8551 | E185: 14.88 | F185: 00:03:04.145 | G185: 00:03:04.560 | H185: 117 | I185: 5.61 | J185: 12.35 | K185: 63.19 | L185: 183 | R185: 483
B186: 10.0351 | C186: 10.06 | D186: 14.8851 | E186: 14.91 | F186: 00:03:04.565 | G186: 00:03:04.980 | H186: 116 | I186: 5.63 | J186: 12.39 | K186: 63.46 | L186: 184 | R186: 485
B187: 10.0651 | C187: 10.08 | D187: 14.9151 | E187: 14.94 | F187: 00:03:04.985 | G187: 00:03:05.400 | H187: 115 | I187: 5.65 | J187: 12.43 | K187: 63.74 | L187: 185 | R187: 486
B188: 10.0851 | C188: 10.1 | D188: 14.9451 | E188: 14.97 | F188: 00:03:05.405 | G188: 00:03:05.820 | H188: 114 | I188: 5.66 | J188: 12.48 | K188: 64.01 | L188: 186 | R188: 488
B189: 10.1051 | C189: 10.13 | D189: 14.9751 | E189: 15 | F189: 00:03:05.825 | G189: 00:03:06.240 | H189: 113 | I189: 5.68 | J189: 12.52 | K189: 64.28 | L189: 187 | R189: 489
B190: 10.1351 | C190: 10.15 | D190: 15.0051 | E190: 15.04 | F190: 00:03:06.245 | G190: 00:03:06.660 | H190: 112 | I190: 5.7 | J190: 12.56 | K190: 64.56 | L190: 188 | R190: 490
B191: 10.1551 | C191: 10.18 | D191: 15.0451 | E191: 15.07 | F191: 00:03:06.665 | G191: 00:03:07.080 | H191: 111 | I191: 5.72 | J191: 12.6 | K191: 64.83 | L191: 189 | R191: 492
B192: 10.1851 | C192: 10.2 | D192: 15.0751 | E192: 15.1 | F192: 00:03:07.085 | G192: 00:03:07.500 | H192: 110 | I192: 5.73 | J192: 12.65 | K192: 65.1 | L192: 190 | R192: 493
B193: 10.2051 | C193: 10.22 | D193: 15.1051 | E193: 15.13 | F193: 00:03:07.505 | G193: 00:03:07.920 | H193: 109 | I193: 5.75 | J193: 12.69 | K193: 65.38 | L193: 191 | R193: 495
B194: 10.2251 | C194: 10.25 | D194: 15.1351 | E194: 15.16 | F194: 00:03:07.925 | G194: 00:03:08.340 | H194: 108 | I194: 5.77 | J194: 12.73 | K194: 65.65 | L194: 192 | R194: 496
B195: =C194+0.0051 -> 10.2551 | C195: 10.27 | D195: 15.1651 | E195: 15.19 | F195: 00:03:08.345 | G195: 00:03:08.760 | H195: 107 | I195: 5.79 | J195: 12.78 | K195: 65.92 | L195: 193 | R195: 497
B196: 10.2751 | C196: 10.3 | D196: 15.1951 | E196: 15.22 | F196: 00:03:08.765 | G196: 00:03:09.180 | H196: 106 | I196: 5.8 | J196: 12.82 | K196: 66.2 | L196: 194 | R196: 499
B197: 10.3051 | C197: 10.32 | D197: 15.2251 | E197: 15.25 | F197: 00:03:09.185 | G197: 00:03:09.600 | H197: 105 | I197: 5.82 | J197: 12.86 | K197: 66.47 | L197: 195 | R197: 500
B198: 10.3251 | C198: 10.34 | D198: 15.2551 | E198: 15.29 | F198: 00:03:09.605 | G198: 00:03:10.020 | H198: 104 | I198: 5.84 | J198: 12.91 | K198: 66.75 | L198: 196 | R198: 502
B199: 10.3451 | C199: 10.37 | D199: 15.2951 | E199: 15.32 | F199: 00:03:10.025 | G199: 00:03:10.440 | H199: 103 | I199: 5.86 | J199: 12.95 | K199: 67.02 | L199: 197 | R199: 503
B200: 10.3751 | C200: 10.39 | D200: 15.3251 | E200: 15.35 | F200: 00:03:10.445 | G200: 00:03:10.860 | H200: 102 | I200: 5.87 | J200: 12.99 | K200: 67.29 | L200: 198 | R200: 504
... 102 more rows

Sheet Be
A1: Kis iskolák FIÚ egyéni és csapatversenye
A3: Név | B3: Sz.év | C3: Kcs. | D3: R. fut | F3: Távolugrás | H3: Klabdahajítás | J3: Összpont | K3: helyezés | L3: Iskola
A4: Balogh Péter Botond | B4: 2015 | C4: I-II. | D4: 10.9 | E4: =IF(D4<6.19,0,VLOOKUP(D4,rrfut,7,TRUE)) -> 82 | F4: 2.47 | G4: =IF(F4<1.79,0,VLOOKUP(F4,távol,4,TRUE)) -> 28 | H4: 23.2 | I4: =IF(H4<4,0,VLOOKUP(H4,kisl,2,TRUE)) -> 52 | J4: =SUM(E4,G4,I4) -> 162 | K4: =RANK(J4,'E. II. kcs'!$J$3:$J$58,0) -> 23 | L4: Mórágy
A5: Horváth Dániel | B5: 2013 | C5: I-II. | D5: 10.2 | E5: 110 | F5: 3.42 | G5: 71 | H5: 23.8 | I5: 54 | J5: =SUM(E5,G5,I5) -> 235 | K5: =RANK(J5,'E. II. kcs'!$J$3:$J$58,0) -> 16 | L5: Mórágy
A6: Palkó Tamás László | B6: 2014 | C6: I-II. | D6: 10.4 | E6: 101 | F6: 2.95 | G6: 49 | H6: 20.8 | I6: 46 | J6: 196 | K6: =RANK(J6,'E. II. kcs'!$J$3:$J$58,0) -> 20 | L6: Mórágy
C7: I-II. | E7: 0 | G7: 0 | I7: 0 | J7: 0 | K7: =RANK(J7,'E. II. kcs'!$J$3:$J$58,0) -> 24
C8: I-II. | E8: 0 | G8: 0 | I8: 0 | J8: 0 | K8: =RANK(J8,'E. II. kcs'!$J$3:$J$58,0) -> 24
C9: I-II. | E9: 0 | G9: 0 | I9: 0 | J9: 0 | K9: =RANK(J9,'E. II. kcs'!$J$3:$J$58,0) -> 24
C10: I-II. | E10: 0 | G10: 0 | I10: 0 | J10: 0 | K10: =RANK(J10,'E. II. kcs'!$J$3:$J$58,0) -> 24
C11: I-II. | E11: 0 | G11: 0 | I11: 0 | J11: 0 | K11: =RANK(J11,'E. II. kcs'!$J$3:$J$58,0) -> 24
C12: I-II. | E12: 0 | G12: 0 | I12: 0 | J12: 0 | K12: =RANK(J12,'E. II. kcs'!$J$3:$J$58,0) -> 24
C13: I-II. | E13: 0 | G13: 0 | I13: 0 | J13: 0 | K13: =RANK(J13,'E. II. kcs'!$J$3:$J$58,0) -> 24
C14: I-II. | E14: 0 | G14: 0 | I14: 0 | J14: 0 | K14: =RANK(J14,'E. II. kcs'!$J$3:$J$58,0) -> 24
C15: I-II. | E15: 0 | G15: 0 | I15: =IF(H15<4,0,VLOOKUP(H15,kisl,2,TRUE)) -> 0 | J15: 0 | K15: =RANK(J15,'E. II. kcs'!$J$3:$J$58,0) -> 24
A16: Bíró Sándor | B16: 2010 | C16: III. | D16: 11.7 | E16: 52 | F16: 2.92 | G16: =IF(F16<1.79,0,VLOOKUP(F16,távol,4,TRUE)) -> 48 | H16: 29.6 | I16: 72 | J16: 172 | K16: =RANK(J16,'E. III. kcs'!$J$3:$J$58,0) -> 24 | L16: Mórágy
A17: Franek Bene | B17: 2010 | C17: III. | D17: 9.5 | E17: 139 | F17: 4.21 | G17: 108 | H17: 26 | I17: 61 | J17: 308 | K17: =RANK(J17,'E. III. kcs'!$J$3:$J$58,0) -> 20 | L17: Mórágy
A18: Franek Botond | B18: 2010 | C18: III. | D18: 9.5 | E18: 139 | F18: 3.71 | G18: 84 | H18: 29.1 | I18: 70 | J18: 293 | K18: =RANK(J18,'E. III. kcs'!$J$3:$J$58,0) -> 23 | L18: Mórágy
A19: Palkó András József | B19: 2011 | C19: III. | D19: 9 | E19: 161 | F19: 3.81 | G19: 89 | H19: 31.9 | I19: 78 | J19: 328 | K19: =RANK(J19,'E. III. kcs'!$J$3:$J$58,0) -> 16 | L19: Mórágy
C20: III. | E20: 0 | G20: 0 | I20: 0 | J20: 0 | K20: =RANK(J20,'E. III. kcs'!$J$3:$J$58,0) -> 25
C21: III. | E21: 0 | G21: 0 | I21: 0 | J21: 0 | K21: =RANK(J21,'E. III. kcs'!$J$3:$J$58,0) -> 25
C22: III. | E22: 0 | G22: 0 | I22: 0 | J22: 0 | K22: =RANK(J22,'E. III. kcs'!$J$3:$J$58,0) -> 25
C23: III. | E23: 0 | G23: 0 | I23: 0 | J23: 0 | K23: =RANK(J23,'E. III. kcs'!$J$3:$J$58,0) -> 25
C24: III. | E24: 0 | G24: 0 | I24: 0 | J24: 0 | K24: =RANK(J24,'E. III. kcs'!$J$3:$J$58,0) -> 25
C25: III. | E25: 0 | G25: 0 | I25: 0 | J25: 0 | K25: =RANK(J25,'E. III. kcs'!$J$3:$J$58,0) -> 25
C26: III. | E26: 0 | G26: 0 | I26: 0 | J26: 0 | K26: =RANK(J26,'E. III. kcs'!$J$3:$J$58,0) -> 25
C27: III. | E27: 0 | G27: 0 | I27: 0 | J27: 0 | K27: =RANK(J27,'E. III. kcs'!$J$3:$J$58,0) -> 25
A28: Palkó Nimród | B28: 2009 | C28: IV. | D28: 14.8 | E28: =IF(D28<6.19,0,VLOOKUP(D28,rfut,5,TRUE)) -> 119 | F28: 4.1 | G28: 102 | H28: 39.1 | I28: 100 | J28: 321 | K28: =RANK(J28,'E. IV. kcs'!$J$3:$J$58,0) -> 23 | L28: Kakasd
A29: Pató Bálint | B29: 2008 | C29: IV. | D29: 14.6 | E29: 126 | F29: 4.38 | G29: =IF(F29<1.79,0,VLOOKUP(F29,távol,4,TRUE)) -> 117 | H29: 46.8 | I29: 125 | J29: 368 | K29: =RANK(J29,'E. IV. kcs'!$J$3:$J$58,0) -> 14 | L29: Kölesd
A30: Tóth József | B30: 2008 | C30: IV. | D30: 14.8 | E30: 119 | F30: 4.62 | G30: 129 | H30: 40.6 | I30: 105 | J30: 353 | K30: =RANK(J30,'E. IV. kcs'!$J$3:$J$58,0) -> 19 | L30: Mórágy
A31: Kis Miron | B31: 2008 | C31: IV. | D31: 14.4 | E31: 132 | F31: 4.24 | G31: 109 | H31: 36.5 | I31: 92 | J31: 333 | K31: =RANK(J31,'E. IV. kcs'!$J$3:$J$58,0) -> 22 | L31: Mórágy
C32: IV. | E32: 0 | G32: 0 | I32: 0 | J32: 0 | K32: =RANK(J32,'E. IV. kcs'!$J$3:$J$58,0) -> 25
C33: IV. | E33: 0 | G33: 0 | I33: 0 | J33: 0 | K33: =RANK(J33,'E. IV. kcs'!$J$3:$J$58,0) -> 25
C34: IV. | E34: 0 | G34: 0 | I34: 0 | J34: 0 | K34: =RANK(J34,'E. IV. kcs'!$J$3:$J$58,0) -> 25
C35: IV. | E35: 0 | G35: 0 | I35: 0 | J35: 0 | K35: =RANK(J35,'E. IV. kcs'!$J$3:$J$58,0) -> 25
C36: IV. | E36: 0 | G36: 0 | I36: 0 | J36: 0 | K36: =RANK(J36,'E. IV. kcs'!$J$3:$J$58,0) -> 25
C37: IV. | E37: 0 | G37: 0 | I37: 0 | J37: 0 | K37: =RANK(J37,'E. IV. kcs'!$J$3:$J$58,0) -> 25
C38: IV. | E38: 0 | G38: 0 | I38: 0 | J38: 0 | K38: =RANK(J38,'E. IV. kcs'!$J$3:$J$58,0) -> 25
C39: IV. | E39: 0 | G39: 0 | I39: 0 | J39: 0 | K39: =RANK(J39,'E. IV. kcs'!$J$3:$J$58,0) -> 25
A42: Őcsényi Perczel Mór Általános Iskola | L42: =RANK(L44,Csapat!$C$3:P30,0) -> 4
A43: Név | B43: Sz.év | C43: Kcs. | D43: R. futás | F43: Távolugrás | H43: Klabdahajítás | J43: Összpont | K43: Helyezés
A44: Kövecses Ádám Noel | B44: 2013 | C44: I-II. | D44: 10.4 | E44: =IF(D44<6.19,0,VLOOKUP(D44,rrfut,7,TRUE)) -> 101 | F44: 3.42 | G44: =IF(F44<1.79,0,VLOOKUP(F44,távol,4,TRUE)) -> 71 | H44: 30 | I44: =IF(H44<4,0,VLOOKUP(H44,kisl,2,TRUE)) -> 73 | J44: =SUM(E44,G44,I44) -> 245 | K44: =RANK(J44,'E. II. kcs'!$J$3:$J$58,0) -> 13 | L44: =SUM(J44:J49) -> 2050
A45: Lepp Balázs | B45: 2012 | C45: I-II. | D45: 9.9 | E45: =IF(D45<6.19,0,VLOOKUP(D45,rrfut,7,TRUE)) -> 122 | F45: 3.32 | G45: 66 | H45: 26 | I45: 61 | J45: =SUM(E45,G45,I45) -> 249 | K45: =RANK(J45,'E. II. kcs'!$J$3:$J$58,0) -> 12
A46: Kránicz Balázs | B46: 2010 | C46: III. | D46: 8.6 | E46: =IF(D46<6.19,0,VLOOKUP(D46,rrfut,7,TRUE)) -> 179 | F46: 4.21 | G46: 108 | H46: 45 | I46: 119 | J46: 406 | K46: =RANK(J46,'E. III. kcs'!$J$3:$J$58,0) -> 4
A47: Onoka Zsombor Patik | B47: 2011 | C47: III. | D47: 9.2 | E47: =IF(D47<6.19,0,VLOOKUP(D47,rrfut,7,TRUE)) -> 152 | F47: 3.74 | G47: 85 | H47: 29.05 | I47: 70 | J47: 307 | K47: =RANK(J47,'E. III. kcs'!$J$3:$J$58,0) -> 21
A48: Faragó Zoltán | B48: 2008 | C48: IV. | D48: 12.7 | E48: =IF(D48<6.19,0,VLOOKUP(D48,rfut,5,TRUE)) -> 191 | F48: 5.41 | G48: 171 | H48: 44.3 | I48: 117 | J48: 479 | K48: =RANK(J48,'E. IV. kcs'!$J$3:$J$58,0) -> 3
A49: Nagy Áron | B49: 2008 | C49: IV. | D49: 14.2 | E49: =IF(D49<6.19,0,VLOOKUP(D49,rfut,5,TRUE)) -> 138 | F49: 4.68 | G49: 132 | H49: 37.1 | I49: 94 | J49: 364 | K49: =RANK(J49,'E. IV. kcs'!$J$3:$J$58,0) -> 16
A52: Kölesdi Béri Balogh Ádám Általános Iskola | L52: =RANK(L54,Csapat!$C$3:P40,0) -> 6
A53: Név | B53: Sz.év | C53: Kcs. | D53: R. futás | F53: Távolugrás | H53: Klabdahajítás | J53: Összpont | K53: Helyezés
A54: Adonics Dorián Gergő | B54: 2012 | C54: I-II. | D54: 9.9 | E54: =IF(D54<6.19,0,VLOOKUP(D54,rrfut,7,TRUE)) -> 122 | F54: 3.83 | G54: =IF(F54<1.79,0,VLOOKUP(F54,távol,4,TRUE)) -> 90 | H54: 33.6 | I54: =IF(H54<4,0,VLOOKUP(H54,kisl,2,TRUE)) -> 83 | J54: =SUM(E54,G54,I54) -> 295 | K54: =RANK(J54,'E. II. kcs'!$J$3:$J$58,0) -> 3 | L54: =SUM(J54:J59) -> 2032
A55: Vámosi Zoltán | B55: 2012 | C55: I-II. | D55: 9.4 | E55: =IF(D55<6.19,0,VLOOKUP(D55,rrfut,7,TRUE)) -> 143 | F55: 3.9 | G55: 93 | H55: 29 | I55: 70 | J55: =SUM(E55,G55,I55) -> 306 | K55: =RANK(J55,'E. II. kcs'!$J$3:$J$58,0) -> 1
A56: Barkóczi Imre Erik | B56: 2011 | C56: III. | D56: 9.8 | E56: =IF(D56<6.19,0,VLOOKUP(D56,rrfut,7,TRUE)) -> 126 | F56: 3.81 | G56: 89 | H56: 37.6 | I56: 95 | J56: 310 | K56: =RANK(J56,'E. III. kcs'!$J$3:$J$58,0) -> 18
A57: Egyed János | B57: 2010 | C57: III. | D57: 9.2 | E57: =IF(D57<6.19,0,VLOOKUP(D57,rrfut,7,TRUE)) -> 152 | F57: 4.2 | G57: 107 | H57: 42.3 | I57: 111 | J57: 370 | K57: =RANK(J57,'E. III. kcs'!$J$3:$J$58,0) -> 8
A58: Koller Dominik | B58: 2009 | C58: IV. | D58: 13.7 | E58: =IF(D58<6.19,0,VLOOKUP(D58,rfut,5,TRUE)) -> 155 | F58: 4.6 | G58: 128 | H58: 38.6 | I58: 98 | J58: 381 | K58: =RANK(J58,'E. IV. kcs'!$J$3:$J$58,0) -> 12
A59: Sienkiewicz Attila Róbert | B59: 2008 | C59: IV. | D59: 13.4 | E59: 166 | F59: 4.55 | G59: 125 | H59: 32.1 | I59: 79 | J59: 370 | K59: =RANK(J59,'E. IV. kcs'!$J$3:$J$58,0) -> 13
A62: Kaposszekcsői Általános Iskola | L62: =RANK(L64,Csapat!$C$3:P50,0) -> 9
A63: Név | B63: Sz.év | C63: Kcs. | D63: R. futás | F63: Távolugrás | H63: Klabdahajítás | J63: Összpont | K63: Helyezés
A64: Balogh Gergő | B64: 2013 | C64: I-II. | D64: 9.5 | E64: =IF(D64<6.19,0,VLOOKUP(D64,rrfut,7,TRUE)) -> 139 | F64: 3.64 | G64: =IF(F64<1.79,0,VLOOKUP(F64,távol,4,TRUE)) -> 81 | H64: 26.9 | I64: =IF(H64<4,0,VLOOKUP(H64,kisl,2,TRUE)) -> 63 | J64: =SUM(E64,G64,I64) -> 283 | K64: =RANK(J64,'E. II. kcs'!$J$3:$J$58,0) -> 7 | L64: =SUM(J64:J69) -> 1946
A65: Hideg Benett Vajk | B65: 2013 | C65: I-II. | D65: 10.7 | E65: =IF(D65<6.19,0,VLOOKUP(D65,rrfut,7,TRUE)) -> 90 | F65: 3 | G65: 51 | H65: 21 | I65: 46 | J65: =SUM(E65,G65,I65) -> 187 | K65: =RANK(J65,'E. II. kcs'!$J$3:$J$58,0) -> 22
A66: Megyeri Barna | B66: 2011 | C66: III. | D66: 9.7 | E66: =IF(D66<6.19,0,VLOOKUP(D66,rrfut,7,TRUE)) -> 131 | F66: 4.7 | G66: 133 | H66: 28 | I66: 67 | J66: 331 | K66: =RANK(J66,'E. III. kcs'!$J$3:$J$58,0) -> 14
A67: Viszlavszki Bence | B67: 2011 | C67: III. | D67: 9.2 | E67: =IF(D67<6.19,0,VLOOKUP(D67,rrfut,7,TRUE)) -> 152 | F67: 4.23 | G67: 109 | H67: 37.7 | I67: 96 | J67: 357 | K67: =RANK(J67,'E. III. kcs'!$J$3:$J$58,0) -> 9
A68: Antal Bálint | B68: 2008 | C68: IV. | D68: 12.9 | E68: =IF(D68<6.19,0,VLOOKUP(D68,rfut,5,TRUE)) -> 184 | F68: 4.97 | G68: 147 | H68: 38.3 | I68: 98 | J68: 429 | K68: =RANK(J68,'E. IV. kcs'!$J$3:$J$58,0) -> 6
A69: Zsolnai Alex | B69: 2008 | C69: IV. | D69: 14.3 | E69: 135 | F69: 4.29 | G69: 112 | H69: 42.7 | I69: 112 | J69: 359 | K69: =RANK(J69,'E. IV. kcs'!$J$3:$J$58,0) -> 17
A72: Hőgyészi Hegyhát Általános Általános Iskola | L72: =RANK(L74,Csapat!$C$3:P60,0) -> 2
A73: Név | B73: Sz.év | C73: Kcs. | D73: R. futás | F73: Távolugrás | H73: Klabdahajítás | J73: Összpont | K73: Helyezés
A74: Kovács Lajos | B74: 2012 | C74: I-II. | D74: 10 | E74: =IF(D74<6.19,0,VLOOKUP(D74,rrfut,7,TRUE)) -> 118 | F74: 3.69 | G74: =IF(F74<1.79,0,VLOOKUP(F74,távol,4,TRUE)) -> 83 | H74: 32.2 | I74: =IF(H74<4,0,VLOOKUP(H74,kisl,2,TRUE)) -> 79 | J74: =SUM(E74,G74,I74) -> 280 | K74: =RANK(J74,'E. II. kcs'!$J$3:$J$58,0) -> 8 | L74: =SUM(J74:J79) -> 2160
A75: Tösmagi Tamás | B75: 2014 | C75: I-II. | D75: 10.7 | E75: =IF(D75<6.19,0,VLOOKUP(D75,rrfut,7,TRUE)) -> 90 | F75: 3.21 | G75: 61 | H75: 25.75 | I75: 60 | J75: =SUM(E75,G75,I75) -> 211 | K75: =RANK(J75,'E. II. kcs'!$J$3:$J$58,0) -> 19
A76: Máté Patrik | B76: 2011 | C76: III. | D76: 8.1 | E76: =IF(D76<6.19,0,VLOOKUP(D76,rrfut,7,TRUE)) -> 203 | F76: 4.97 | G76: 147 | H76: 45 | I76: 119 | J76: 469 | K76: =RANK(J76,'E. III. kcs'!$J$3:$J$58,0) -> 2
A77: Mohácsi Zoltán | B77: 2010 | C77: III. | D77: 9.2 | E77: =IF(D77<6.19,0,VLOOKUP(D77,rrfut,7,TRUE)) -> 152 | F77: 4.31 | G77: 113 | H77: 35.75 | I77: 90 | J77: 355 | K77: =RANK(J77,'E. III. kcs'!$J$3:$J$58,0) -> 10
A78: Orsós Martin | B78: 2008 | C78: IV. | D78: 13.2 | E78: =IF(D78<6.19,0,VLOOKUP(D78,rfut,5,TRUE)) -> 173 | F78: 4.95 | G78: 146 | H78: 38.65 | I78: 99 | J78: 418 | K78: =RANK(J78,'E. IV. kcs'!$J$3:$J$58,0) -> 9
A79: Sasi Márkus | B79: 2009 | C79: IV. | D79: 13.1 | E79: 176 | F79: 4.87 | G79: 142 | H79: 41.85 | I79: 109 | J79: 427 | K79: =RANK(J79,'E. IV. kcs'!$J$3:$J$58,0) -> 8
A82: Decsi Bíborvég Általános Iskola | L82: =RANK(L84,Csapat!$C$3:P70,0) -> 8
A83: Név | B83: Sz.év | C83: Kcs. | D83: R. futás | F83: Távolugrás | H83: Klabdahajítás | J83: Összpont | K83: Helyezés
A84: Csicsó Máté | B84: 2012 | C84: I-II. | D84: 9.8 | E84: =IF(D84<6.19,0,VLOOKUP(D84,rrfut,7,TRUE)) -> 126 | F84: 3.86 | G84: =IF(F84<1.79,0,VLOOKUP(F84,távol,4,TRUE)) -> 91 | H84: 28.6 | I84: =IF(H84<4,0,VLOOKUP(H84,kisl,2,TRUE)) -> 69 | J84: =SUM(E84,G84,I84) -> 286 | K84: =RANK(J84,'E. II. kcs'!$J$3:$J$58,0) -> 6 | L84: =SUM(J84:J89) -> 1986
A85: Kalányos Dominik Dávid | B85: 2012 | C85: I-II. | D85: 10.6 | E85: =IF(D85<6.19,0,VLOOKUP(D85,rrfut,7,TRUE)) -> 94 | F85: 3.22 | G85: 61 | H85: 27.3 | I85: 65 | J85: =SUM(E85,G85,I85) -> 220 | K85: =RANK(J85,'E. II. kcs'!$J$3:$J$58,0) -> 17
A86: Csicsó Milán | B86: 2011 | C86: III. | D86: 9.6 | E86: =IF(D86<6.19,0,VLOOKUP(D86,rrfut,7,TRUE)) -> 135 | F86: 4.11 | G86: 103 | H86: 28.35 | I86: 68 | J86: 306 | K86: =RANK(J86,'E. III. kcs'!$J$3:$J$58,0) -> 22
A87: Józsa Flórián | B87: 2011 | C87: III. | D87: 9.5 | E87: =IF(D87<6.19,0,VLOOKUP(D87,rrfut,7,TRUE)) -> 139 | F87: 4.02 | G87: 98 | H87: 37.1 | I87: 94 | J87: 331 | K87: =RANK(J87,'E. III. kcs'!$J$3:$J$58,0) -> 14
A88: Akay Márk | B88: 2009 | C88: IV. | D88: 13.6 | E88: =IF(D88<6.19,0,VLOOKUP(D88,rfut,5,TRUE)) -> 159 | F88: 4.24 | G88: 109 | H88: 36 | I88: 91 | J88: 359 | K88: =RANK(J88,'E. IV. kcs'!$J$3:$J$58,0) -> 17
A89: Baráth Brendon | B89: 2008 | C89: IV. | D89: 13.3 | E89: 169 | F89: 5.5 | G89: 176 | H89: 50.95 | I89: 139 | J89: 484 | K89: =RANK(J89,'E. IV. kcs'!$J$3:$J$58,0) -> 2
A92: Kurdi Körzeti Általános Iskola | L92: =RANK(L94,Csapat!$C$3:P80,0) -> 3
A93: Név | B93: Sz.év | C93: Kcs. | D93: R. futás | F93: Távolugrás | H93: Klabdahajítás | J93: Összpont | K93: Helyezés
A94: Marczi Mario Alex | B94: 2013 | C94: I-II. | D94: 10.9 | E94: =IF(D94<6.19,0,VLOOKUP(D94,rrfut,7,TRUE)) -> 82 | F94: 3.85 | G94: =IF(F94<1.79,0,VLOOKUP(F94,távol,4,TRUE)) -> 90 | H94: 29.35 | I94: =IF(H94<4,0,VLOOKUP(H94,kisl,2,TRUE)) -> 71 | J94: =SUM(E94,G94,I94) -> 243 | K94: =RANK(J94,'E. II. kcs'!$J$3:$J$58,0) -> 14 | L94: =SUM(J94:J99) -> 2141
A95: Molnár Szabolcs József | B95: 2013 | C95: I-II. | D95: 9.5 | E95: =IF(D95<6.19,0,VLOOKUP(D95,rrfut,7,TRUE)) -> 139 | F95: 3.62 | G95: 80 | H95: 28.4 | I95: 68 | J95: =SUM(E95,G95,I95) -> 287 | K95: =RANK(J95,'E. II. kcs'!$J$3:$J$58,0) -> 5
A96: Janzsó Viktor | B96: 2010 | C96: III. | D96: 9.5 | E96: =IF(D96<6.19,0,VLOOKUP(D96,rrfut,7,TRUE)) -> 139 | F96: 4.38 | G96: 117 | H96: 35.55 | I96: 89 | J96: 345 | K96: =RANK(J96,'E. III. kcs'!$J$3:$J$58,0) -> 12
A97: Kocsándi Martin Máté | B97: 2010 | C97: III. | D97: 9.5 | E97: =IF(D97<6.19,0,VLOOKUP(D97,rrfut,7,TRUE)) -> 139 | F97: 3.62 | G97: 80 | H97: 36.05 | I97: 91 | J97: 310 | K97: =RANK(J97,'E. III. kcs'!$J$3:$J$58,0) -> 18
A98: Orsós Nándor | B98: 2008 | C98: IV. | D98: 13.2 | E98: =IF(D98<6.19,0,VLOOKUP(D98,rfut,5,TRUE)) -> 173 | F98: 5.11 | G98: 154 | H98: 42.95 | I98: 113 | J98: 440 | K98: =RANK(J98,'E. IV. kcs'!$J$3:$J$58,0) -> 5
A99: Speigler Krisztofer János | B99: 2008 | C99: IV. | D99: 13.3 | E99: 169 | F99: 5.44 | G99: 173 | H99: 60.9 | I99: 174 | J99: 516 | K99: =RANK(J99,'E. IV. kcs'!$J$3:$J$58,0) -> 1
A102: Kakasd, Bonyhádi Általános Iskola | L102: =RANK(L104,Csapat!$C$3:P90,0) -> 1
A103: Név | B103: Sz.év | C103: Kcs. | D103: R. futás | F103: Távolugrás | H103: Klabdahajítás | J103: Összpont | K103: Helyezés
A104: Fábián Bence | B104: 2012 | C104: I-II. | D104: 9.9 | E104: =IF(D104<6.19,0,VLOOKUP(D104,rrfut,7,TRUE)) -> 122 | F104: 3.82 | G104: =IF(F104<1.79,0,VLOOKUP(F104,távol,4,TRUE)) -> 89 | H104: 34.8 | I104: =IF(H104<4,0,VLOOKUP(H104,kisl,2,TRUE)) -> 87 | J104: =SUM(E104,G104,I104) -> 298 | K104: =RANK(J104,'E. II. kcs'!$J$3:$J$58,0) -> 2 | L104: =SUM(J104:J109) -> 2215
A105: Horváth Benjamin | B105: 2012 | C105: I-II. | D105: 9.3 | E105: =IF(D105<6.19,0,VLOOKUP(D105,rrfut,7,TRUE)) -> 147 | F105: 3.85 | G105: 90 | H105: 24.2 | I105: 55 | J105: =SUM(E105,G105,I105) -> 292 | K105: =RANK(J105,'E. II. kcs'!$J$3:$J$58,0) -> 4
A106: Mayer Máté | B106: 2010 | C106: III. | D106: 9 | E106: =IF(D106<6.19,0,VLOOKUP(D106,rrfut,7,TRUE)) -> 161 | F106: 4.34 | G106: 115 | H106: 42.3 | I106: 111 | J106: 387 | K106: =RANK(J106,'E. III. kcs'!$J$3:$J$58,0) -> 5
A107: Moszbauer Balázs | B107: 2010 | C107: III. | D107: 8.9 | E107: =IF(D107<6.19,0,VLOOKUP(D107,rrfut,7,TRUE)) -> 165 | F107: 4.41 | G107: 118 | H107: 40.15 | I107: 103 | J107: 386 | K107: =RANK(J107,'E. III. kcs'!$J$3:$J$58,0) -> 6
A108: Szabó Barna | B108: 2008 | C108: IV. | D108: 12.9 | E108: =IF(D108<6.19,0,VLOOKUP(D108,rfut,5,TRUE)) -> 184 | F108: 5.01 | G108: 149 | H108: 41.4 | I108: 108 | J108: 441 | K108: =RANK(J108,'E. IV. kcs'!$J$3:$J$58,0) -> 4
A109: Sztehló Olivér | B109: 2008 | C109: IV. | D109: 13.2 | E109: 173 | F109: 4.7 | G109: 133 | H109: 40.7 | I109: 105 | J109: 411 | K109: =RANK(J109,'E. IV. kcs'!$J$3:$J$58,0) -> 10
A112: Pálfa, Simontornyai Vak Bottyán Általános Iskola és Gimnázium | L112: =RANK(L114,Csapat!$C$3:P100,0) -> 5
A113: Név | B113: Sz.év | C113: Kcs. | D113: R. futás | F113: Távolugrás | H113: Klabdahajítás | J113: Összpont | K113: Helyezés
A114: Kaszanov Bálint | B114: 2013 | C114: I-II. | D114: 10.5 | E114: =IF(D114<6.19,0,VLOOKUP(D114,rrfut,7,TRUE)) -> 97 | F114: 3.24 | G114: =IF(F114<1.79,0,VLOOKUP(F114,távol,4,TRUE)) -> 62 | H114: 25.9 | I114: =IF(H114<4,0,VLOOKUP(H114,kisl,2,TRUE)) -> 60 | J114: =SUM(E114,G114,I114) -> 219 | K114: =RANK(J114,'E. II. kcs'!$J$3:$J$58,0) -> 18 | L114: =SUM(J114:J119) -> 2048
A115: Kaszanov Bence | B115: 2013 | C115: I-II. | D115: 10.7 | E115: =IF(D115<6.19,0,VLOOKUP(D115,rrfut,7,TRUE)) -> 90 | F115: 3.4 | G115: 70 | H115: 17.4 | I115: 36 | J115: =SUM(E115,G115,I115) -> 196 | K115: =RANK(J115,'E. II. kcs'!$J$3:$J$58,0) -> 20
A116: Budai Norbert | B116: 2010 | C116: III. | D116: 8.9 | E116: =IF(D116<6.19,0,VLOOKUP(D116,rrfut,7,TRUE)) -> 165 | F116: 4 | G116: 97 | H116: 44.1 | I116: 116 | J116: 378 | K116: =RANK(J116,'E. III. kcs'!$J$3:$J$58,0) -> 7
A117: Démuth Béla Kevin | B117: 2010 | C117: III. | D117: 8.4 | E117: =IF(D117<6.19,0,VLOOKUP(D117,rrfut,7,TRUE)) -> 189 | F117: 5.01 | G117: 149 | H117: 50.9 | I117: 139 | J117: 477 | K117: =RANK(J117,'E. III. kcs'!$J$3:$J$58,0) -> 1
A118: Deres Dávid | B118: 2008 | C118: IV. | D118: 14.4 | E118: =IF(D118<6.19,0,VLOOKUP(D118,rfut,5,TRUE)) -> 132 | F118: 5.04 | G118: 150 | H118: 53 | I118: 146 | J118: 428 | K118: =RANK(J118,'E. IV. kcs'!$J$3:$J$58,0) -> 7
A119: Kovács Péter | B119: 2008 | C119: IV. | D119: 15.4 | E119: 100 | F119: 4.81 | G119: 139 | H119: 42.5 | I119: 111 | J119: 350 | K119: =RANK(J119,'E. IV. kcs'!$J$3:$J$58,0) -> 20
A122: Teveli Általános Iskola | L122: =RANK(L124,Csapat!$C$3:P110,0) -> 10
A123: Név | B123: Sz.év | C123: Kcs. | D123: R. futás | F123: Távolugrás | H123: Klabdahajítás | J123: Összpont | K123: Helyezés
A124: Fábián Levente | B124: 2013 | C124: I-II. | D124: 10.3 | E124: =IF(D124<6.19,0,VLOOKUP(D124,rrfut,7,TRUE)) -> 106 | F124: 3.32 | G124: =IF(F124<1.79,0,VLOOKUP(F124,távol,4,TRUE)) -> 66 | H124: 34.95 | I124: =IF(H124<4,0,VLOOKUP(H124,kisl,2,TRUE)) -> 88 | J124: =SUM(E124,G124,I124) -> 260 | K124: =RANK(J124,'E. II. kcs'!$J$3:$J$58,0) -> 11 | L124: =SUM(J124:J129) -> 1868
A125: Kovács Roland | B125: 2013 | C125: I-II. | D125: 10.3 | E125: =IF(D125<6.19,0,VLOOKUP(D125,rrfut,7,TRUE)) -> 106 | F125: 3.51 | G125: 75 | H125: 24.6 | I125: 57 | J125: =SUM(E125,G125,I125) -> 238 | K125: =RANK(J125,'E. II. kcs'!$J$3:$J$58,0) -> 15
A126: Nagy Norbert István | B126: 2010 | C126: III. | D126: 9.5 | E126: =IF(D126<6.19,0,VLOOKUP(D126,rrfut,7,TRUE)) -> 139 | F126: 3.79 | G126: 88 | H126: 41.2 | I126: 107 | J126: 334 | K126: =RANK(J126,'E. III. kcs'!$J$3:$J$58,0) -> 13
A127: Torma Tamás Lajos | B127: 2010 | C127: III. | D127: 9.8 | E127: =IF(D127<6.19,0,VLOOKUP(D127,rrfut,7,TRUE)) -> 126 | F127: 4.02 | G127: 98 | H127: 38.05 | I127: 97 | J127: 321 | K127: =RANK(J127,'E. III. kcs'!$J$3:$J$58,0) -> 17
A128: Lakatos Rudolf Krisztofer | B128: 2009 | C128: IV. | D128: 13.9 | E128: =IF(D128<6.19,0,VLOOKUP(D128,rfut,5,TRUE)) -> 148 | F128: 4.24 | G128: 109 | H128: 36.9 | I128: 93 | J128: 350 | K128: =RANK(J128,'E. IV. kcs'!$J$3:$J$58,0) -> 20
A129: Nagy Ármin | B129: 2008 | C129: IV. | D129: 14.1 | E129: 142 | F129: 4.28 | G129: 111 | H129: 42.9 | I129: 112 | J129: 365 | K129: =RANK(J129,'E. IV. kcs'!$J$3:$J$58,0) -> 15
A132: Várdomb-Alsónána Általános Iskola | L132: =RANK(L134,Csapat!$C$3:P120,0) -> 7
A133: Név | B133: Sz.év | C133: Kcs. | D133: R. futás | F133: Távolugrás | H133: Klabdahajítás | J133: Összpont | K133: Helyezés
A134: Héger Bálint István | B134: 2014 | C134: I-II. | D134: 9.7 | E134: =IF(D134<6.19,0,VLOOKUP(D134,rrfut,7,TRUE)) -> 131 | F134: 3.73 | G134: =IF(F134<1.79,0,VLOOKUP(F134,távol,4,TRUE)) -> 85 | H134: 24.45 | I134: =IF(H134<4,0,VLOOKUP(H134,kisl,2,TRUE)) -> 56 | J134: =SUM(E134,G134,I134) -> 272 | K134: =RANK(J134,'E. II. kcs'!$J$3:$J$58,0) -> 9 | L134: =SUM(J134:J139) -> 1999
A135: Loboda Dominik | B135: 2013 | C135: I-II. | D135: 10.3 | E135: =IF(D135<6.19,0,VLOOKUP(D135,rrfut,7,TRUE)) -> 106 | F135: 4.02 | G135: 98 | H135: 25 | I135: 58 | J135: =SUM(E135,G135,I135) -> 262 | K135: =RANK(J135,'E. II. kcs'!$J$3:$J$58,0) -> 10
A136: Major Erik Krisztián | B136: 2010 | C136: III. | D136: 8.9 | E136: =IF(D136<6.19,0,VLOOKUP(D136,rrfut,7,TRUE)) -> 165 | F136: 4.02 | G136: 98 | H136: 35.3 | I136: 89 | J136: 352 | K136: =RANK(J136,'E. III. kcs'!$J$3:$J$58,0) -> 11
A137: Török Balázs | B137: 2010 | C137: III. | D137: 8.7 | E137: =IF(D137<6.19,0,VLOOKUP(D137,rrfut,7,TRUE)) -> 175 | F137: 4.84 | G137: 140 | H137: 36.75 | I137: 93 | J137: 408 | K137: =RANK(J137,'E. III. kcs'!$J$3:$J$58,0) -> 3
A138: Csitkovics Milán Gábor | B138: 2009 | C138: IV. | D138: 14.2 | E138: =IF(D138<6.19,0,VLOOKUP(D138,rfut,5,TRUE)) -> 138 | F138: 4.45 | G138: 120 | H138: 48.7 | I138: 132 | J138: 390 | K138: =RANK(J138,'E. IV. kcs'!$J$3:$J$58,0) -> 11
A139: Nyíregyházi Csanád László | B139: 2008 | C139: IV. | D139: 15.8 | E139: 88 | F139: 4.04 | G139: 99 | H139: 47.5 | I139: 128 | J139: 315 | K139: =RANK(J139,'E. IV. kcs'!$J$3:$J$58,0) -> 24
L142: =RANK(L144,Csapat!$C$3:P130,0) -> 11
A143: Név | B143: Sz.év | C143: Kcs. | D143: R. futás | F143: Távolugrás | H143: Klabdahajítás | J143: Összpont | K143: Helyezés
C144: I-II. | E144: =IF(D144<6.19,0,VLOOKUP(D144,rrfut,7,TRUE)) -> 0 | G144: =IF(F144<1.79,0,VLOOKUP(F144,távol,4,TRUE)) -> 0 | I144: =IF(H144<4,0,VLOOKUP(H144,kisl,2,TRUE)) -> 0 | J144: =SUM(E144,G144,I144) -> 0 | K144: =RANK(J144,'E. II. kcs'!$J$3:$J$58,0) -> 24 | L144: =SUM(J144:J149) -> 0
C145: I-II. | E145: =IF(D145<6.19,0,VLOOKUP(D145,rrfut,7,TRUE)) -> 0 | G145: 0 | I145: 0 | J145: =SUM(E145,G145,I145) -> 0 | K145: =RANK(J145,'E. II. kcs'!$J$3:$J$58,0) -> 24
C146: III. | E146: =IF(D146<6.19,0,VLOOKUP(D146,rrfut,7,TRUE)) -> 0 | G146: 0 | I146: 0 | J146: 0 | K146: =RANK(J146,'E. III. kcs'!$J$3:$J$58,0) -> 25
C147: III. | E147: =IF(D147<6.19,0,VLOOKUP(D147,rrfut,7,TRUE)) -> 0 | G147: 0 | I147: 0 | J147: 0 | K147: =RANK(J147,'E. III. kcs'!$J$3:$J$58,0) -> 25
C148: IV. | E148: =IF(D148<6.19,0,VLOOKUP(D148,rfut,5,TRUE)) -> 0 | G148: 0 | I148: 0 | J148: 0 | K148: =RANK(J148,'E. IV. kcs'!$J$3:$J$58,0) -> 25
C149: IV. | E149: 0 | G149: 0 | I149: 0 | J149: 0 | K149: =RANK(J149,'E. IV. kcs'!$J$3:$J$58,0) -> 25
L152: =RANK(L154,Csapat!$C$3:P140,0) -> 11
A153: Név | B153: Sz.év | C153: Kcs. | D153: R. futás | F153: Távolugrás | H153: Klabdahajítás | J153: Összpont | K153: Helyezés
C154: I-II. | E154: =IF(D154<6.19,0,VLOOKUP(D154,rrfut,7,TRUE)) -> 0 | G154: =IF(F154<1.79,0,VLOOKUP(F154,távol,4,TRUE)) -> 0 | I154: =IF(H154<4,0,VLOOKUP(H154,kisl,2,TRUE)) -> 0 | J154: =SUM(E154,G154,I154) -> 0 | K154: =RANK(J154,'E. II. kcs'!$J$3:$J$58,0) -> 24 | L154: =SUM(J154:J159) -> 0
C155: I-II. | E155: =IF(D155<6.19,0,VLOOKUP(D155,rrfut,7,TRUE)) -> 0 | G155: 0 | I155: 0 | J155: =SUM(E155,G155,I155) -> 0 | K155: =RANK(J155,'E. II. kcs'!$J$3:$J$58,0) -> 24
C156: III. | E156: =IF(D156<6.19,0,VLOOKUP(D156,rrfut,7,TRUE)) -> 0 | G156: 0 | I156: 0 | J156: 0 | K156: =RANK(J156,'E. III. kcs'!$J$3:$J$58,0) -> 25
C157: III. | E157: =IF(D157<6.19,0,VLOOKUP(D157,rrfut,7,TRUE)) -> 0 | G157: 0 | I157: 0 | J157: 0 | K157: =RANK(J157,'E. III. kcs'!$J$3:$J$58,0) -> 25
C158: IV. | E158: =IF(D158<6.19,0,VLOOKUP(D158,rfut,5,TRUE)) -> 0 | G158: 0 | I158: 0 | J158: 0 | K158: =RANK(J158,'E. IV. kcs'!$J$3:$J$58,0) -> 25
C159: IV. | E159: 0 | G159: 0 | I159: 0 | J159: 0 | K159: =RANK(J159,'E. IV. kcs'!$J$3:$J$58,0) -> 25
L162: =RANK(L164,Csapat!$C$3:P150,0) -> 11
A163: Név | B163: Sz.év | C163: Kcs. | D163: R. futás | F163: Távolugrás | H163: Klabdahajítás | J163: Összpont | K163: Helyezés
C164: I-II. | E164: =IF(D164<6.19,0,VLOOKUP(D164,rrfut,7,TRUE)) -> 0 | G164: =IF(F164<1.79,0,VLOOKUP(F164,távol,4,TRUE)) -> 0 | I164: =IF(H164<4,0,VLOOKUP(H164,kisl,2,TRUE)) -> 0 | J164: =SUM(E164,G164,I164) -> 0 | K164: =RANK(J164,'E. II. kcs'!$J$3:$J$58,0) -> 24 | L164: =SUM(J164:J169) -> 0
C165: I-II. | E165: =IF(D165<6.19,0,VLOOKUP(D165,rrfut,7,TRUE)) -> 0 | G165: 0 | I165: 0 | J165: =SUM(E165,G165,I165) -> 0 | K165: =RANK(J165,'E. II. kcs'!$J$3:$J$58,0) -> 24
C166: III. | E166: =IF(D166<6.19,0,VLOOKUP(D166,rrfut,7,TRUE)) -> 0 | G166: 0 | I166: 0 | J166: 0 | K166: =RANK(J166,'E. III. kcs'!$J$3:$J$58,0) -> 25
C167: III. | E167: =IF(D167<6.19,0,VLOOKUP(D167,rrfut,7,TRUE)) -> 0 | G167: 0 | I167: 0 | J167: 0 | K167: =RANK(J167,'E. III. kcs'!$J$3:$J$58,0) -> 25
C168: IV. | E168: =IF(D168<6.19,0,VLOOKUP(D168,rfut,5,TRUE)) -> 0 | G168: 0 | I168: 0 | J168: 0 | K168: =RANK(J168,'E. IV. kcs'!$J$3:$J$58,0) -> 25
C169: IV. | E169: 0 | G169: 0 | I169: 0 | J169: 0 | K169: =RANK(J169,'E. IV. kcs'!$J$3:$J$58,0) -> 25
L172: =RANK(L174,Csapat!$C$3:P160,0) -> 11
A173: Név | B173: Sz.év | C173: Kcs. | D173: R. futás | F173: Távolugrás | H173: Klabdahajítás | J173: Összpont | K173: Helyezés
C174: I-II. | E174: =IF(D174<6.19,0,VLOOKUP(D174,rrfut,7,TRUE)) -> 0 | G174: =IF(F174<1.79,0,VLOOKUP(F174,távol,4,TRUE)) -> 0 | I174: =IF(H174<4,0,VLOOKUP(H174,kisl,2,TRUE)) -> 0 | J174: =SUM(E174,G174,I174) -> 0 | K174: =RANK(J174,'E. II. kcs'!$J$3:$J$58,0) -> 24 | L174: =SUM(J174:J179) -> 0
C175: I-II. | E175: =IF(D175<6.19,0,VLOOKUP(D175,rrfut,7,TRUE)) -> 0 | G175: 0 | I175: 0 | J175: =SUM(E175,G175,I175) -> 0 | K175: =RANK(J175,'E. II. kcs'!$J$3:$J$58,0) -> 24
C176: III. | E176: =IF(D176<6.19,0,VLOOKUP(D176,rrfut,7,TRUE)) -> 0 | G176: 0 | I176: 0 | J176: 0 | K176: =RANK(J176,'E. III. kcs'!$J$3:$J$58,0) -> 25
C177: III. | E177: =IF(D177<6.19,0,VLOOKUP(D177,rrfut,7,TRUE)) -> 0 | G177: 0 | I177: 0 | J177: 0 | K177: =RANK(J177,'E. III. kcs'!$J$3:$J$58,0) -> 25
C178: IV. | E178: =IF(D178<6.19,0,VLOOKUP(D178,rfut,5,TRUE)) -> 0 | G178: 0 | I178: 0 | J178: 0 | K178: =RANK(J178,'E. IV. kcs'!$J$3:$J$58,0) -> 25
C179: IV. | E179: 0 | G179: 0 | I179: 0 | J179: 0 | K179: =RANK(J179,'E. IV. kcs'!$J$3:$J$58,0) -> 25
L182: =RANK(L184,Csapat!$C$3:P170,0) -> 11
A183: Név | B183: Sz.év | C183: Kcs. | D183: R. futás | F183: Távolugrás | H183: Klabdahajítás | J183: Összpont | K183: Helyezés
C184: I-II. | E184: =IF(D184<6.19,0,VLOOKUP(D184,rrfut,7,TRUE)) -> 0 | G184: =IF(F184<1.79,0,VLOOKUP(F184,távol,4,TRUE)) -> 0 | I184: =IF(H184<4,0,VLOOKUP(H184,kisl,2,TRUE)) -> 0 | J184: =SUM(E184,G184,I184) -> 0 | K184: =RANK(J184,'E. II. kcs'!$J$3:$J$58,0) -> 24 | L184: =SUM(J184:J189) -> 0
C185: I-II. | E185: =IF(D185<6.19,0,VLOOKUP(D185,rrfut,7,TRUE)) -> 0 | G185: 0 | I185: 0 | J185: =SUM(E185,G185,I185) -> 0 | K185: =RANK(J185,'E. II. kcs'!$J$3:$J$58,0) -> 24
C186: III. | E186: =IF(D186<6.19,0,VLOOKUP(D186,rrfut,7,TRUE)) -> 0 | G186: 0 | I186: 0 | J186: 0 | K186: =RANK(J186,'E. III. kcs'!$J$3:$J$58,0) -> 25
C187: III. | E187: =IF(D187<6.19,0,VLOOKUP(D187,rrfut,7,TRUE)) -> 0 | G187: 0 | I187: 0 | J187: 0 | K187: =RANK(J187,'E. III. kcs'!$J$3:$J$58,0) -> 25
C188: IV. | E188: =IF(D188<6.19,0,VLOOKUP(D188,rfut,5,TRUE)) -> 0 | G188: 0 | I188: 0 | J188: 0 | K188: =RANK(J188,'E. IV. kcs'!$J$3:$J$58,0) -> 25
C189: IV. | E189: 0 | G189: 0 | I189: 0 | J189: 0 | K189: =RANK(J189,'E. IV. kcs'!$J$3:$J$58,0) -> 25
L192: =RANK(L194,Csapat!$C$3:P180,0) -> 11
A193: Név | B193: Sz.év | C193: Kcs. | D193: R. futás | F193: Távolugrás | H193: Klabdahajítás | J193: Összpont | K193: Helyezés
C194: I-II. | E194: =IF(D194<6.19,0,VLOOKUP(D194,rrfut,7,TRUE)) -> 0 | G194: =IF(F194<1.79,0,VLOOKUP(F194,távol,4,TRUE)) -> 0 | I194: =IF(H194<4,0,VLOOKUP(H194,kisl,2,TRUE)) -> 0 | J194: =SUM(E194,G194,I194) -> 0 | K194: =RANK(J194,'E. II. kcs'!$J$3:$J$58,0) -> 24 | L194: =SUM(J194:J199) -> 0
C195: I-II. | E195: =IF(D195<6.19,0,VLOOKUP(D195,rrfut,7,TRUE)) -> 0 | G195: 0 | I195: 0 | J195: =SUM(E195,G195,I195) -> 0 | K195: =RANK(J195,'E. II. kcs'!$J$3:$J$58,0) -> 24
C196: III. | E196: =IF(D196<6.19,0,VLOOKUP(D196,rrfut,7,TRUE)) -> 0 | G196: 0 | I196: 0 | J196: 0 | K196: =RANK(J196,'E. III. kcs'!$J$3:$J$58,0) -> 25
C197: III. | E197: =IF(D197<6.19,0,VLOOKUP(D197,rrfut,7,TRUE)) -> 0 | G197: 0 | I197: 0 | J197: 0 | K197: =RANK(J197,'E. III. kcs'!$J$3:$J$58,0) -> 25
C198: IV. | E198: =IF(D198<6.19,0,VLOOKUP(D198,rfut,5,TRUE)) -> 0 | G198: 0 | I198: 0 | J198: 0 | K198: =RANK(J198,'E. IV. kcs'!$J$3:$J$58,0) -> 25
C199: IV. | E199: 0 | G199: 0 | I199: 0 | J199: 0 | K199: =RANK(J199,'E. IV. kcs'!$J$3:$J$58,0) -> 25
L202: =RANK(L204,Csapat!$C$3:P190,0) -> 11
A203: Név | B203: Sz.év | C203: Kcs. | D203: R. futás | F203: Távolugrás | H203: Klabdahajítás | J203: Összpont | K203: Helyezés
C204: I-II. | E204: =IF(D204<6.19,0,VLOOKUP(D204,rrfut,7,TRUE)) -> 0 | G204: =IF(F204<1.79,0,VLOOKUP(F204,távol,4,TRUE)) -> 0 | I204: =IF(H204<4,0,VLOOKUP(H204,kisl,2,TRUE)) -> 0 | J204: =SUM(E204,G204,I204) -> 0 | K204: =RANK(J204,'E. II. kcs'!$J$3:$J$58,0) -> 24 | L204: =SUM(J204:J209) -> 0
C205: I-II. | E205: =IF(D205<6.19,0,VLOOKUP(D205,rrfut,7,TRUE)) -> 0 | G205: 0 | I205: 0 | J205: =SUM(E205,G205,I205) -> 0 | K205: =RANK(J205,'E. II. kcs'!$J$3:$J$58,0) -> 24
C206: III. | E206: =IF(D206<6.19,0,VLOOKUP(D206,rrfut,7,TRUE)) -> 0 | G206: 0 | I206: 0 | J206: 0 | K206: =RANK(J206,'E. III. kcs'!$J$3:$J$58,0) -> 25
C207: III. | E207: =IF(D207<6.19,0,VLOOKUP(D207,rrfut,7,TRUE)) -> 0 | G207: 0 | I207: 0 | J207: 0 | K207: =RANK(J207,'E. III. kcs'!$J$3:$J$58,0) -> 25
C208: IV. | E208: =IF(D208<6.19,0,VLOOKUP(D208,rfut,5,TRUE)) -> 0 | G208: 0 | I208: 0 | J208: 0 | K208: =RANK(J208,'E. IV. kcs'!$J$3:$J$58,0) -> 25
C209: IV. | E209: 0 | G209: 0 | I209: 0 | J209: 0 | K209: =RANK(J209,'E. IV. kcs'!$J$3:$J$58,0) -> 25
L212: =RANK(L214,Csapat!$C$3:P200,0) -> 11
A213: Név | B213: Sz.év | C213: Kcs. | D213: R. futás | F213: Távolugrás | H213: Klabdahajítás | J213: Összpont | K213: Helyezés
C214: I-II. | E214: =IF(D214<6.19,0,VLOOKUP(D214,rrfut,7,TRUE)) -> 0 | G214: =IF(F214<1.79,0,VLOOKUP(F214,távol,4,TRUE)) -> 0 | I214: =IF(H214<4,0,VLOOKUP(H214,kisl,2,TRUE)) -> 0 | J214: =SUM(E214,G214,I214) -> 0 | K214: =RANK(J214,'E. II. kcs'!$J$3:$J$58,0) -> 24 | L214: =SUM(J214:J219) -> 0
C215: I-II. | E215: =IF(D215<6.19,0,VLOOKUP(D215,rrfut,7,TRUE)) -> 0 | G215: 0 | I215: 0 | J215: =SUM(E215,G215,I215) -> 0 | K215: =RANK(J215,'E. II. kcs'!$J$3:$J$58,0) -> 24
C216: III. | E216: =IF(D216<6.19,0,VLOOKUP(D216,rrfut,7,TRUE)) -> 0 | G216: 0 | I216: 0 | J216: 0 | K216: =RANK(J216,'E. III. kcs'!$J$3:$J$58,0) -> 25
C217: III. | E217: =IF(D217<6.19,0,VLOOKUP(D217,rrfut,7,TRUE)) -> 0 | G217: 0 | I217: 0 | J217: 0 | K217: =RANK(J217,'E. III. kcs'!$J$3:$J$58,0) -> 25
C218: IV. | E218: =IF(D218<6.19,0,VLOOKUP(D218,rfut,5,TRUE)) -> 0 | G218: 0 | I218: 0 | J218: 0 | K218: =RANK(J218,'E. IV. kcs'!$J$3:$J$58,0) -> 25
C219: IV. | E219: 0 | G219: 0 | I219: 0 | J219: 0 | K219: =RANK(J219,'E. IV. kcs'!$J$3:$J$58,0) -> 25
L222: =RANK(L224,Csapat!$C$3:P210,0) -> 11
A223: Név | B223: Sz.év | C223: Kcs. | D223: R. futás | F223: Távolugrás | H223: Klabdahajítás | J223: Összpont | K223: Helyezés
C224: I-II. | E224: =IF(D224<6.19,0,VLOOKUP(D224,rrfut,7,TRUE)) -> 0 | G224: =IF(F224<1.79,0,VLOOKUP(F224,távol,4,TRUE)) -> 0 | I224: =IF(H224<4,0,VLOOKUP(H224,kisl,2,TRUE)) -> 0 | J224: =SUM(E224,G224,I224) -> 0 | K224: =RANK(J224,'E. II. kcs'!$J$3:$J$58,0) -> 24 | L224: =SUM(J224:J229) -> 0
C225: I-II. | E225: =IF(D225<6.19,0,VLOOKUP(D225,rrfut,7,TRUE)) -> 0 | G225: 0 | I225: 0 | J225: =SUM(E225,G225,I225) -> 0 | K225: =RANK(J225,'E. II. kcs'!$J$3:$J$58,0) -> 24
C226: III. | E226: =IF(D226<6.19,0,VLOOKUP(D226,rrfut,7,TRUE)) -> 0 | G226: 0 | I226: 0 | J226: 0 | K226: =RANK(J226,'E. III. kcs'!$J$3:$J$58,0) -> 25
C227: III. | E227: =IF(D227<6.19,0,VLOOKUP(D227,rrfut,7,TRUE)) -> 0 | G227: 0 | I227: 0 | J227: 0 | K227: =RANK(J227,'E. III. kcs'!$J$3:$J$58,0) -> 25
C228: IV. | E228: =IF(D228<6.19,0,VLOOKUP(D228,rfut,5,TRUE)) -> 0 | G228: 0 | I228: 0 | J228: 0 | K228: =RANK(J228,'E. IV. kcs'!$J$3:$J$58,0) -> 25
C229: IV. | E229: 0 | G229: 0 | I229: 0 | J229: 0 | K229: =RANK(J229,'E. IV. kcs'!$J$3:$J$58,0) -> 25
L232: =RANK(L234,Csapat!$C$3:P220,0) -> 11
A233: Név | B233: Sz.év | C233: Kcs. | D233: R. futás | F233: Távolugrás | H233: Klabdahajítás | J233: Összpont | K233: Helyezés
C234: I-II. | E234: =IF(D234<6.19,0,VLOOKUP(D234,rrfut,7,TRUE)) -> 0 | G234: =IF(F234<1.79,0,VLOOKUP(F234,távol,4,TRUE)) -> 0 | I234: =IF(H234<4,0,VLOOKUP(H234,kisl,2,TRUE)) -> 0 | J234: =SUM(E234,G234,I234) -> 0 | K234: =RANK(J234,'E. II. kcs'!$J$3:$J$58,0) -> 24 | L234: =SUM(J234:J239) -> 0
C235: I-II. | E235: =IF(D235<6.19,0,VLOOKUP(D235,rrfut,7,TRUE)) -> 0 | G235: 0 | I235: 0 | J235: =SUM(E235,G235,I235) -> 0 | K235: =RANK(J235,'E. II. kcs'!$J$3:$J$58,0) -> 24
C236: III. | E236: =IF(D236<6.19,0,VLOOKUP(D236,rrfut,7,TRUE)) -> 0 | G236: 0 | I236: 0 | J236: 0 | K236: =RANK(J236,'E. III. kcs'!$J$3:$J$58,0) -> 25
C237: III. | E237: =IF(D237<6.19,0,VLOOKUP(D237,rrfut,7,TRUE)) -> 0 | G237: 0 | I237: 0 | J237: 0 | K237: =RANK(J237,'E. III. kcs'!$J$3:$J$58,0) -> 25
C238: IV. | E238: =IF(D238<6.19,0,VLOOKUP(D238,rfut,5,TRUE)) -> 0 | G238: 0 | I238: 0 | J238: 0 | K238: =RANK(J238,'E. IV. kcs'!$J$3:$J$58,0) -> 25
C239: IV. | E239: 0 | G239: 0 | I239: 0 | J239: 0 | K239: =RANK(J239,'E. IV. kcs'!$J$3:$J$58,0) -> 25
L242: =RANK(L244,Csapat!$C$3:P230,0) -> 11
A243: Név | B243: Sz.év | C243: Kcs. | D243: R. futás | F243: Távolugrás | H243: Klabdahajítás | J243: Összpont | K243: Helyezés
... 14 more rows

Sheet Csapat
A1: Kis iskolák FIÚ csapatverseny (Sorrendezés Ctrl + z )
A2: Ssz | B2: Iskola | C2: Pont
A3: 1. | B3: =Be!$A$102&CHAR(10)&Be!$A$104&" "&Be!$J$104&" "&Be!$A$105&" "&Be!$J$105&CHAR(10)&Be!$A$106&" "&Be!$J$106&" "&Be!$A$107&" "&Be!$J$107&CHAR(10)&Be!$A$108&" "&Be!$J$108&" "&Be!$A$109&" "&Be!$J$109 -> Kakasd, Bonyhádi Általános Iskola Fábián Bence 298 Horváth Benjamin 292 Mayer Máté 387 Moszbauer Balázs 386 Szabó Barna 441 Sztehló Olivér 411 | C3: =Be!$L$104 -> 2215
A4: 2. | B4: =Be!$A$72&CHAR(10)&Be!$A$74&" "&Be!$J$74&" "&Be!$A$75&" "&Be!$J$75&CHAR(10)&Be!$A$76&" "&Be!$J$76&" "&Be!$A$77&" "&Be!$J$77&CHAR(10)&Be!$A$78&" "&Be!$J$78&" "&Be!$A$79&" "&Be!$J$79 -> Hőgyészi Hegyhát Általános Általános Iskola Kovács Lajos 280 Tösmagi Tamás 211 Máté Patrik 469 Mohácsi Zoltán 355 Orsós Martin 418 Sasi Márkus 427 | C4: =Be!$L$74 -> 2160
A5: 3. | B5: =Be!$A$92&CHAR(10)&Be!$A$94&" "&Be!$J$94&" "&Be!$A$95&" "&Be!$J$95&CHAR(10)&Be!$A$96&" "&Be!$J$96&" "&Be!$A$97&" "&Be!$J$97&CHAR(10)&Be!$A$98&" "&Be!$J$98&" "&Be!$A$99&" "&Be!$J$99 -> Kurdi Körzeti Általános Iskola Marczi Mario Alex 243 Molnár Szabolcs József 287 Janzsó Viktor 345 Kocsándi Martin Máté 310 Orsós Nándor 440 Speigler Krisztofer János 516 | C5: =Be!$L$94 -> 2141
A6: 4. | B6: =Be!$A$42&CHAR(10)&Be!$A$44&" "&Be!$J$44&" "&Be!$A$45&" "&Be!$J$45&CHAR(10)&Be!$A$46&" "&Be!$J$46&" "&Be!$A$47&" "&Be!$J$47&CHAR(10)&Be!$A$48&" "&Be!$J$48&" "&Be!$A$49&" "&Be!$J$49 -> Őcsényi Perczel Mór Általános Iskola Kövecses Ádám Noel 245 Lepp Balázs 249 Kránicz Balázs 406 Onoka Zsombor Patik 307 Faragó Zoltán 479 Nagy Áron 364 | C6: =Be!$L$44 -> 2050
A7: 5. | B7: =Be!$A$112&CHAR(10)&Be!$A$114&" "&Be!$J$114&" "&Be!$A$115&" "&Be!$J$115&CHAR(10)&Be!$A$116&" "&Be!$J$116&" "&Be!$A$117&" "&Be!$J$117&CHAR(10)&Be!$A$118&" "&Be!$J$118&" "&Be!$A$119&" "&Be!$J$119 -> Pálfa, Simontornyai Vak Bottyán Általános Iskola és Gimnázium Kaszanov Bálint 219 Kaszanov Bence 196 Budai Norbert 378 Démuth Béla Kevin 477 Deres Dávid 428 Kovács Péter 350 | C7: =Be!$L$114 -> 2048
A8: 6. | B8: =Be!$A$52&CHAR(10)&Be!$A$54&" "&Be!$J$54&" "&Be!$A$55&" "&Be!$J$55&CHAR(10)&Be!$A$56&" "&Be!$J$56&" "&Be!$A$57&" "&Be!$J$57&CHAR(10)&Be!$A$58&" "&Be!$J$58&" "&Be!$A$59&" "&Be!$J$59 -> Kölesdi Béri Balogh Ádám Általános Iskola Adonics Dorián Gergő 295 Vámosi Zoltán 306 Barkóczi Imre Erik 310 Egyed János 370 Koller Dominik 381 Sienkiewicz Attila Róbert 370 | C8: =Be!$L$54 -> 2032
A9: 7. | B9: =Be!$A$132&CHAR(10)&Be!$A$134&" "&Be!$J$134&" "&Be!$A$135&" "&Be!$J$135&CHAR(10)&Be!$A$136&" "&Be!$J$136&" "&Be!$A$137&" "&Be!$J$137&CHAR(10)&Be!$A$138&" "&Be!$J$138&" "&Be!$A$139&" "&Be!$J$139 -> Várdomb-Alsónána Általános Iskola Héger Bálint István 272 Loboda Dominik 262 Major Erik Krisztián 352 Török Balázs 408 Csitkovics Milán Gábor 390 Nyíregyházi Csanád László 315 | C9: =Be!$L$134 -> 1999
A10: 8. | B10: =Be!$A$82&CHAR(10)&Be!$A$84&" "&Be!$J$84&" "&Be!$A$85&" "&Be!$J$85&CHAR(10)&Be!$A$86&" "&Be!$J$86&" "&Be!$A$87&" "&Be!$J$87&CHAR(10)&Be!$A$88&" "&Be!$J$88&" "&Be!$A$89&" "&Be!$J$89 -> Decsi Bíborvég Általános Iskola Csicsó Máté 286 Kalányos Dominik Dávid 220 Csicsó Milán 306 Józsa Flórián 331 Akay Márk 359 Baráth Brendon 484 | C10: =Be!$L$84 -> 1986
A11: 9. | B11: =Be!$A$62&CHAR(10)&Be!$A$64&" "&Be!$J$64&" "&Be!$A$65&" "&Be!$J$65&CHAR(10)&Be!$A$66&" "&Be!$J$66&" "&Be!$A$67&" "&Be!$J$67&CHAR(10)&Be!$A$68&" "&Be!$J$68&" "&Be!$A$69&" "&Be!$J$69 -> Kaposszekcsői Általános Iskola Balogh Gergő 283 Hideg Benett Vajk 187 Megyeri Barna 331 Viszlavszki Bence 357 Antal Bálint 429 Zsolnai Alex 359 | C11: =Be!$L$64 -> 1946
A12: 10. | B12: =Be!$A$122&CHAR(10)&Be!$A$124&" "&Be!$J$124&" "&Be!$A$125&" "&Be!$J$125&CHAR(10)&Be!$A$126&" "&Be!$J$126&" "&Be!$A$127&" "&Be!$J$127&CHAR(10)&Be!$A$128&" "&Be!$J$128&" "&Be!$A$129&" "&Be!$J$129 -> Teveli Általános Iskola Fábián Levente 260 Kovács Roland 238 Nagy Norbert István 334 Torma Tamás Lajos 321 Lakatos Rudolf Krisztofer 350 Nagy Ármin 365 | C12: =Be!$L$124 -> 1868
A13: 11. | B13: =Be!$A$142&CHAR(10)&Be!$A$144&" "&Be!$J$144&" "&Be!$A$145&" "&Be!$J$145&CHAR(10)&Be!$A$146&" "&Be!$J$146&" "&Be!$A$147&" "&Be!$J$147&CHAR(10)&Be!$A$148&" "&Be!$J$148&" "&Be!$A$149&" "&Be!$J$149 -> 0 0 0 0 0 0 | C13: =Be!$L$144 -> 0
A14: 12. | B14: =Be!$A$152&CHAR(10)&Be!$A$154&" "&Be!$J$154&" "&Be!$A$155&" "&Be!$J$155&CHAR(10)&Be!$A$156&" "&Be!$J$156&" "&Be!$A$157&" "&Be!$J$157&CHAR(10)&Be!$A$158&" "&Be!$J$158&" "&Be!$A$159&" "&Be!$J$159 -> 0 0 0 0 0 0 | C14: =Be!$L$154 -> 0
A15: 13. | B15: =Be!$A$162&CHAR(10)&Be!$A$164&" "&Be!$J$164&" "&Be!$A$165&" "&Be!$J$165&CHAR(10)&Be!$A$166&" "&Be!$J$166&" "&Be!$A$167&" "&Be!$J$167&CHAR(10)&Be!$A$168&" "&Be!$J$168&" "&Be!$A$169&" "&Be!$J$169 -> 0 0 0 0 0 0 | C15: =Be!$L$164 -> 0
A16: 14. | B16: =Be!$A$172&CHAR(10)&Be!$A$174&" "&Be!$J$174&" "&Be!$A$175&" "&Be!$J$175&CHAR(10)&Be!$A$176&" "&Be!$J$176&" "&Be!$A$177&" "&Be!$J$177&CHAR(10)&Be!$A$178&" "&Be!$J$178&" "&Be!$A$179&" "&Be!$J$179 -> 0 0 0 0 0 0 | C16: =Be!$L$174 -> 0
A17: 15. | B17: =Be!$A$182&CHAR(10)&Be!$A$184&" "&Be!$J$184&" "&Be!$A$185&" "&Be!$J$185&CHAR(10)&Be!$A$186&" "&Be!$J$186&" "&Be!$A$187&" "&Be!$J$187&CHAR(10)&Be!$A$188&" "&Be!$J$188&" "&Be!$A$189&" "&Be!$J$189 -> 0 0 0 0 0 0 | C17: =Be!$L$184 -> 0
A18: 16. | B18: =Be!$A$192&CHAR(10)&Be!$A$194&" "&Be!$J$194&" "&Be!$A$195&" "&Be!$J$195&CHAR(10)&Be!$A$196&" "&Be!$J$196&" "&Be!$A$197&" "&Be!$J$197&CHAR(10)&Be!$A$198&" "&Be!$J$198&" "&Be!$A$199&" "&Be!$J$199 -> 0 0 0 0 0 0 | C18: =Be!$L$194 -> 0
A19: 17. | B19: =Be!$A$202&CHAR(10)&Be!$A$204&" "&Be!$J$204&" "&Be!$A$205&" "&Be!$J$205&CHAR(10)&Be!$A$206&" "&Be!$J$206&" "&Be!$A$207&" "&Be!$J$207&CHAR(10)&Be!$A$208&" "&Be!$J$208&" "&Be!$A$209&" "&Be!$J$209 -> 0 0 0 0 0 0 | C19: =Be!$L$204 -> 0
A20: 18. | B20: =Be!$A$212&CHAR(10)&Be!$A$214&" "&Be!$J$214&" "&Be!$A$215&" "&Be!$J$215&CHAR(10)&Be!$A$216&" "&Be!$J$216&" "&Be!$A$217&" "&Be!$J$217&CHAR(10)&Be!$A$218&" "&Be!$J$218&" "&Be!$A$219&" "&Be!$J$219 -> 0 0 0 0 0 0 | C20: =Be!$L$214 -> 0
A21: 19. | B21: =Be!$A$222&CHAR(10)&Be!$A$224&" "&Be!$J$224&" "&Be!$A$225&" "&Be!$J$225&CHAR(10)&Be!$A$226&" "&Be!$J$226&" "&Be!$A$227&" "&Be!$J$227&CHAR(10)&Be!$A$228&" "&Be!$J$228&" "&Be!$A$229&" "&Be!$J$229 -> 0 0 0 0 0 0 | C21: =Be!$L$224 -> 0
A22: 20. | B22: =Be!$A$232&CHAR(10)&Be!$A$234&" "&Be!$J$234&" "&Be!$A$235&" "&Be!$J$235&CHAR(10)&Be!$A$236&" "&Be!$J$236&" "&Be!$A$237&" "&Be!$J$237&CHAR(10)&Be!$A$238&" "&Be!$J$238&" "&Be!$A$239&" "&Be!$J$239 -> 0 0 0 0 0 0 | C22: =Be!$L$234 -> 0
A23: 21. | B23: =Be!$A$242&CHAR(10)&Be!$A$244&" "&Be!$J$244&" "&Be!$A$245&" "&Be!$J$245&CHAR(10)&Be!$A$246&" "&Be!$J$246&" "&Be!$A$247&" "&Be!$J$247&CHAR(10)&Be!$A$248&" "&Be!$J$248&" "&Be!$A$249&" "&Be!$J$249 -> 0 0 0 0 0 0 | C23: =Be!$L$244 -> 0
A24: 22. | B24: =Be!$A$252&CHAR(10)&Be!$A$254&" "&Be!$J$254&" "&Be!$A$255&" "&Be!$J$255&CHAR(10)&Be!$A$256&" "&Be!$J$256&" "&Be!$A$257&" "&Be!$J$257&CHAR(10)&Be!$A$258&" "&Be!$J$258&" "&Be!$A$259&" "&Be!$J$259 -> 0 0 0 0 0 0 | C24: =Be!$L$254 -> 0

Sheet E. II. kcs
A1: Kis iskolák II. korcsoport FIÚ EGYÉNI végeredmény (Sorbarendezés Ctrl + t )
A2: Ssz | B2: Név | C2: Szév | D2: 100 m | E2: p | F2: Távol | G2: p | H2: Kisl | I2: p | J2: Összp | L2: Iskola
A3: 1. | B3: =Be!A55 -> Vámosi Zoltán | C3: =Be!B55 -> 2012 | D3: =Be!D55 -> 9.4 | E3: =Be!E55 -> 143 | F3: =Be!F55 -> 3.9 | G3: =Be!G55 -> 93 | H3: =Be!H55 -> 29 | I3: =Be!I55 -> 70 | J3: =Be!J55 -> 306 | L3: =Be!A52 -> Kölesdi Béri Balogh Ádám Általános Iskola
A4: 2. | B4: =Be!A104 -> Fábián Bence | C4: =Be!B104 -> 2012 | D4: =Be!D104 -> 9.9 | E4: =Be!E104 -> 122 | F4: =Be!F104 -> 3.82 | G4: =Be!G104 -> 89 | H4: =Be!H104 -> 34.8 | I4: =Be!I104 -> 87 | J4: =Be!J104 -> 298 | L4: =Be!A102 -> Kakasd, Bonyhádi Általános Iskola
A5: 3. | B5: =Be!A54 -> Adonics Dorián Gergő | C5: =Be!B54 -> 2012 | D5: =Be!D54 -> 9.9 | E5: =Be!E54 -> 122 | F5: =Be!F54 -> 3.83 | G5: =Be!G54 -> 90 | H5: =Be!H54 -> 33.6 | I5: =Be!I54 -> 83 | J5: =Be!J54 -> 295 | L5: =Be!A52 -> Kölesdi Béri Balogh Ádám Általános Iskola
A6: 4. | B6: =Be!A105 -> Horváth Benjamin | C6: =Be!B105 -> 2012 | D6: =Be!D105 -> 9.3 | E6: =Be!E105 -> 147 | F6: =Be!F105 -> 3.85 | G6: =Be!G105 -> 90 | H6: =Be!H105 -> 24.2 | I6: =Be!I105 -> 55 | J6: =Be!J105 -> 292 | L6: =Be!A102 -> Kakasd, Bonyhádi Általános Iskola
A7: 5. | B7: =Be!A95 -> Molnár Szabolcs József | C7: =Be!B95 -> 2013 | D7: =Be!D95 -> 9.5 | E7: =Be!E95 -> 139 | F7: =Be!F95 -> 3.62 | G7: =Be!G95 -> 80 | H7: =Be!H95 -> 28.4 | I7: =Be!I95 -> 68 | J7: =Be!J95 -> 287 | L7: =Be!A92 -> Kurdi Körzeti Általános Iskola
A8: 6. | B8: =Be!A84 -> Csicsó Máté | C8: =Be!B84 -> 2012 | D8: =Be!D84 -> 9.8 | E8: =Be!E84 -> 126 | F8: =Be!F84 -> 3.86 | G8: =Be!G84 -> 91 | H8: =Be!H84 -> 28.6 | I8: =Be!I84 -> 69 | J8: =Be!J84 -> 286 | L8: =Be!A82 -> Decsi Bíborvég Általános Iskola
A9: 7. | B9: =Be!A64 -> Balogh Gergő | C9: =Be!B64 -> 2013 | D9: =Be!D64 -> 9.5 | E9: =Be!E64 -> 139 | F9: =Be!F64 -> 3.64 | G9: =Be!G64 -> 81 | H9: =Be!H64 -> 26.9 | I9: =Be!I64 -> 63 | J9: =Be!J64 -> 283 | L9: =Be!A62 -> Kaposszekcsői Általános Iskola
A10: 8. | B10: =Be!A74 -> Kovács Lajos | C10: =Be!B74 -> 2012 | D10: =Be!D74 -> 10 | E10: =Be!E74 -> 118 | F10: =Be!F74 -> 3.69 | G10: =Be!G74 -> 83 | H10: =Be!H74 -> 32.2 | I10: =Be!I74 -> 79 | J10: =Be!J74 -> 280 | L10: =Be!A72 -> Hőgyészi Hegyhát Általános Általános Iskola
A11: 9. | B11: =Be!A134 -> Héger Bálint István | C11: =Be!B134 -> 2014 | D11: =Be!D134 -> 9.7 | E11: =Be!E134 -> 131 | F11: =Be!F134 -> 3.73 | G11: =Be!G134 -> 85 | H11: =Be!H134 -> 24.45 | I11: =Be!I134 -> 56 | J11: =Be!J134 -> 272 | L11: =Be!A132 -> Várdomb-Alsónána Általános Iskola
A12: 10. | B12: =Be!A135 -> Loboda Dominik | C12: =Be!B135 -> 2013 | D12: =Be!D135 -> 10.3 | E12: =Be!E135 -> 106 | F12: =Be!F135 -> 4.02 | G12: =Be!G135 -> 98 | H12: =Be!H135 -> 25 | I12: =Be!I135 -> 58 | J12: =Be!J135 -> 262 | L12: =Be!A132 -> Várdomb-Alsónána Általános Iskola
A13: 11. | B13: =Be!A124 -> Fábián Levente | C13: =Be!B124 -> 2013 | D13: =Be!D124 -> 10.3 | E13: =Be!E124 -> 106 | F13: =Be!F124 -> 3.32 | G13: =Be!G124 -> 66 | H13: =Be!H124 -> 34.95 | I13: =Be!I124 -> 88 | J13: =Be!J124 -> 260 | L13: =Be!A122 -> Teveli Általános Iskola
A14: 12. | B14: =Be!A45 -> Lepp Balázs | C14: =Be!B45 -> 2012 | D14: =Be!D45 -> 9.9 | E14: =Be!E45 -> 122 | F14: =Be!F45 -> 3.32 | G14: =Be!G45 -> 66 | H14: =Be!H45 -> 26 | I14: =Be!I45 -> 61 | J14: =Be!J45 -> 249 | L14: =Be!A42 -> Őcsényi Perczel Mór Általános Iskola
A15: 13. | B15: =Be!A44 -> Kövecses Ádám Noel | C15: =Be!B44 -> 2013 | D15: =Be!D44 -> 10.4 | E15: =Be!E44 -> 101 | F15: =Be!F44 -> 3.42 | G15: =Be!G44 -> 71 | H15: =Be!H44 -> 30 | I15: =Be!I44 -> 73 | J15: =Be!J44 -> 245 | L15: =Be!A42 -> Őcsényi Perczel Mór Általános Iskola
A16: 14. | B16: =Be!A94 -> Marczi Mario Alex | C16: =Be!B94 -> 2013 | D16: =Be!D94 -> 10.9 | E16: =Be!E94 -> 82 | F16: =Be!F94 -> 3.85 | G16: =Be!G94 -> 90 | H16: =Be!H94 -> 29.35 | I16: =Be!I94 -> 71 | J16: =Be!J94 -> 243 | L16: =Be!A92 -> Kurdi Körzeti Általános Iskola
A17: 15. | B17: =Be!A125 -> Kovács Roland | C17: =Be!B125 -> 2013 | D17: =Be!D125 -> 10.3 | E17: =Be!E125 -> 106 | F17: =Be!F125 -> 3.51 | G17: =Be!G125 -> 75 | H17: =Be!H125 -> 24.6 | I17: =Be!I125 -> 57 | J17: =Be!J125 -> 238 | L17: =Be!A122 -> Teveli Általános Iskola
A18: 16. | B18: =Be!A5 -> Horváth Dániel | C18: =Be!B5 -> 2013 | D18: =Be!D5 -> 10.2 | E18: =Be!E5 -> 110 | F18: =Be!F5 -> 3.42 | G18: =Be!G5 -> 71 | H18: =Be!H5 -> 23.8 | I18: =Be!I5 -> 54 | J18: =Be!J5 -> 235 | L18: =Be!L5 -> Mórágy
A19: 17. | B19: =Be!A85 -> Kalányos Dominik Dávid | C19: =Be!B85 -> 2012 | D19: =Be!D85 -> 10.6 | E19: =Be!E85 -> 94 | F19: =Be!F85 -> 3.22 | G19: =Be!G85 -> 61 | H19: =Be!H85 -> 27.3 | I19: =Be!I85 -> 65 | J19: =Be!J85 -> 220 | L19: =Be!A82 -> Decsi Bíborvég Általános Iskola
A20: 18. | B20: =Be!A114 -> Kaszanov Bálint | C20: =Be!B114 -> 2013 | D20: =Be!D114 -> 10.5 | E20: =Be!E114 -> 97 | F20: =Be!F114 -> 3.24 | G20: =Be!G114 -> 62 | H20: =Be!H114 -> 25.9 | I20: =Be!I114 -> 60 | J20: =Be!J114 -> 219 | L20: =Be!A112 -> Pálfa, Simontornyai Vak Bottyán Általános Iskola és Gimnázium
A21: 19. | B21: =Be!A75 -> Tösmagi Tamás | C21: =Be!B75 -> 2014 | D21: =Be!D75 -> 10.7 | E21: =Be!E75 -> 90 | F21: =Be!F75 -> 3.21 | G21: =Be!G75 -> 61 | H21: =Be!H75 -> 25.75 | I21: =Be!I75 -> 60 | J21: =Be!J75 -> 211 | L21: =Be!A72 -> Hőgyészi Hegyhát Általános Általános Iskola
A22: 20. | B22: =Be!A115 -> Kaszanov Bence | C22: =Be!B115 -> 2013 | D22: =Be!D115 -> 10.7 | E22: =Be!E115 -> 90 | F22: =Be!F115 -> 3.4 | G22: =Be!G115 -> 70 | H22: =Be!H115 -> 17.4 | I22: =Be!I115 -> 36 | J22: =Be!J115 -> 196 | L22: =Be!A112 -> Pálfa, Simontornyai Vak Bottyán Általános Iskola és Gimnázium
A23: 21. | B23: =Be!A6 -> Palkó Tamás László | C23: =Be!B6 -> 2014 | D23: =Be!D6 -> 10.4 | E23: =Be!E6 -> 101 | F23: =Be!F6 -> 2.95 | G23: =Be!G6 -> 49 | H23: =Be!H6 -> 20.8 | I23: =Be!I6 -> 46 | J23: =Be!J6 -> 196 | L23: =Be!L6 -> Mórágy
A24: 22. | B24: =Be!A65 -> Hideg Benett Vajk | C24: =Be!B65 -> 2013 | D24: =Be!D65 -> 10.7 | E24: =Be!E65 -> 90 | F24: =Be!F65 -> 3 | G24: =Be!G65 -> 51 | H24: =Be!H65 -> 21 | I24: =Be!I65 -> 46 | J24: =Be!J65 -> 187 | L24: =Be!A62 -> Kaposszekcsői Általános Iskola
A25: 23. | B25: =Be!A4 -> Balogh Péter Botond | C25: =Be!B4 -> 2015 | D25: =Be!D4 -> 10.9 | E25: =Be!E4 -> 82 | F25: =Be!F4 -> 2.47 | G25: =Be!G4 -> 28 | H25: =Be!H4 -> 23.2 | I25: =Be!I4 -> 52 | J25: =Be!J4 -> 162 | L25: =Be!L4 -> Mórágy
A26: 24. | B26: =Be!A144 -> 0 | C26: =Be!B144 -> 0 | D26: =Be!D144 -> 0 | E26: =Be!E144 -> 0 | F26: =Be!F144 -> 0 | G26: =Be!G144 -> 0 | H26: =Be!H144 -> 0 | I26: =Be!I144 -> 0 | J26: =Be!J144 -> 0 | L26: =Be!A142 -> 0
A27: 25. | B27: =Be!A145 -> 0 | C27: =Be!B145 -> 0 | D27: =Be!D145 -> 0 | E27: =Be!E145 -> 0 | F27: =Be!F145 -> 0 | G27: =Be!G145 -> 0 | H27: =Be!H145 -> 0 | I27: =Be!I145 -> 0 | J27: =Be!J145 -> 0 | L27: =Be!A142 -> 0
A28: 26. | B28: =Be!A154 -> 0 | C28: =Be!B154 -> 0 | D28: =Be!D154 -> 0 | E28: =Be!E154 -> 0 | F28: =Be!F154 -> 0 | G28: =Be!G154 -> 0 | H28: =Be!H154 -> 0 | I28: =Be!I154 -> 0 | J28: =Be!J154 -> 0 | L28: =Be!A152 -> 0
A29: 27. | B29: =Be!A155 -> 0 | C29: =Be!B155 -> 0 | D29: =Be!D155 -> 0 | E29: =Be!E155 -> 0 | F29: =Be!F155 -> 0 | G29: =Be!G155 -> 0 | H29: =Be!H155 -> 0 | I29: =Be!I155 -> 0 | J29: =Be!J155 -> 0 | L29: =Be!A152 -> 0
A30: 28. | B30: =Be!A164 -> 0 | C30: =Be!B164 -> 0 | D30: =Be!D164 -> 0 | E30: =Be!E164 -> 0 | F30: =Be!F164 -> 0 | G30: =Be!G164 -> 0 | H30: =Be!H164 -> 0 | I30: =Be!I164 -> 0 | J30: =Be!J164 -> 0 | L30: =Be!A162 -> 0
A31: 29. | B31: =Be!A165 -> 0 | C31: =Be!B165 -> 0 | D31: =Be!D165 -> 0 | E31: =Be!E165 -> 0 | F31: =Be!F165 -> 0 | G31: =Be!G165 -> 0 | H31: =Be!H165 -> 0 | I31: =Be!I165 -> 0 | J31: =Be!J165 -> 0 | L31: =Be!A162 -> 0
A32: 30. | B32: =Be!A174 -> 0 | C32: =Be!B174 -> 0 | D32: =Be!D174 -> 0 | E32: =Be!E174 -> 0 | F32: =Be!F174 -> 0 | G32: =Be!G174 -> 0 | H32: =Be!H174 -> 0 | I32: =Be!I174 -> 0 | J32: =Be!J174 -> 0 | L32: =Be!A172 -> 0
A33: 31. | B33: =Be!A175 -> 0 | C33: =Be!B175 -> 0 | D33: =Be!D175 -> 0 | E33: =Be!E175 -> 0 | F33: =Be!F175 -> 0 | G33: =Be!G175 -> 0 | H33: =Be!H175 -> 0 | I33: =Be!I175 -> 0 | J33: =Be!J175 -> 0 | L33: =Be!A172 -> 0
A34: 32. | B34: =Be!A184 -> 0 | C34: =Be!B184 -> 0 | D34: =Be!D184 -> 0 | E34: =Be!E184 -> 0 | F34: =Be!F184 -> 0 | G34: =Be!G184 -> 0 | H34: =Be!H184 -> 0 | I34: =Be!I184 -> 0 | J34: =Be!J184 -> 0 | L34: =Be!A182 -> 0
A35: 33. | B35: =Be!A185 -> 0 | C35: =Be!B185 -> 0 | D35: =Be!D185 -> 0 | E35: =Be!E185 -> 0 | F35: =Be!F185 -> 0 | G35: =Be!G185 -> 0 | H35: =Be!H185 -> 0 | I35: =Be!I185 -> 0 | J35: =Be!J185 -> 0 | L35: =Be!A182 -> 0
A36: 34. | B36: =Be!A194 -> 0 | C36: =Be!B194 -> 0 | D36: =Be!D194 -> 0 | E36: =Be!E194 -> 0 | F36: =Be!F194 -> 0 | G36: =Be!G194 -> 0 | H36: =Be!H194 -> 0 | I36: =Be!I194 -> 0 | J36: =Be!J194 -> 0 | L36: =Be!A192 -> 0
A37: 35. | B37: =Be!A195 -> 0 | C37: =Be!B195 -> 0 | D37: =Be!D195 -> 0 | E37: =Be!E195 -> 0 | F37: =Be!F195 -> 0 | G37: =Be!G195 -> 0 | H37: =Be!H195 -> 0 | I37: =Be!I195 -> 0 | J37: =Be!J195 -> 0 | L37: =Be!A192 -> 0
A38: 36. | B38: =Be!A204 -> 0 | C38: =Be!B204 -> 0 | D38: =Be!D204 -> 0 | E38: =Be!E204 -> 0 | F38: =Be!F204 -> 0 | G38: =Be!G204 -> 0 | H38: =Be!H204 -> 0 | I38: =Be!I204 -> 0 | J38: =Be!J204 -> 0 | L38: =Be!A202 -> 0
A39: 37. | B39: =Be!A205 -> 0 | C39: =Be!B205 -> 0 | D39: =Be!D205 -> 0 | E39: =Be!E205 -> 0 | F39: =Be!F205 -> 0 | G39: =Be!G205 -> 0 | H39: =Be!H205 -> 0 | I39: =Be!I205 -> 0 | J39: =Be!J205 -> 0 | L39: =Be!A202 -> 0
A40: 38. | B40: =Be!A214 -> 0 | C40: =Be!B214 -> 0 | D40: =Be!D214 -> 0 | E40: =Be!E214 -> 0 | F40: =Be!F214 -> 0 | G40: =Be!G214 -> 0 | H40: =Be!H214 -> 0 | I40: =Be!I214 -> 0 | J40: =Be!J214 -> 0 | L40: =Be!A212 -> 0
A41: 39. | B41: =Be!A215 -> 0 | C41: =Be!B215 -> 0 | D41: =Be!D215 -> 0 | E41: =Be!E215 -> 0 | F41: =Be!F215 -> 0 | G41: =Be!G215 -> 0 | H41: =Be!H215 -> 0 | I41: =Be!I215 -> 0 | J41: =Be!J215 -> 0 | L41: =Be!A212 -> 0
A42: 40. | B42: =Be!A224 -> 0 | C42: =Be!B224 -> 0 | D42: =Be!D224 -> 0 | E42: =Be!E224 -> 0 | F42: =Be!F224 -> 0 | G42: =Be!G224 -> 0 | H42: =Be!H224 -> 0 | I42: =Be!I224 -> 0 | J42: =Be!J224 -> 0 | L42: =Be!A222 -> 0
A43: 41. | B43: =Be!A225 -> 0 | C43: =Be!B225 -> 0 | D43: =Be!D225 -> 0 | E43: =Be!E225 -> 0 | F43: =Be!F225 -> 0 | G43: =Be!G225 -> 0 | H43: =Be!H225 -> 0 | I43: =Be!I225 -> 0 | J43: =Be!J225 -> 0 | L43: =Be!A222 -> 0
A44: 42. | B44: =Be!A234 -> 0 | C44: =Be!B234 -> 0 | D44: =Be!D234 -> 0 | E44: =Be!E234 -> 0 | F44: =Be!F234 -> 0 | G44: =Be!G234 -> 0 | H44: =Be!H234 -> 0 | I44: =Be!I234 -> 0 | J44: =Be!J234 -> 0 | L44: =Be!A232 -> 0
A45: 43. | B45: =Be!A235 -> 0 | C45: =Be!B235 -> 0 | D45: =Be!D235 -> 0 | E45: =Be!E235 -> 0 | F45: =Be!F235 -> 0 | G45: =Be!G235 -> 0 | H45: =Be!H235 -> 0 | I45: =Be!I235 -> 0 | J45: =Be!J235 -> 0 | L45: =Be!A232 -> 0
A46: 44. | B46: =Be!A244 -> 0 | C46: =Be!B244 -> 0 | D46: =Be!D244 -> 0 | E46: =Be!E244 -> 0 | F46: =Be!F244 -> 0 | G46: =Be!G244 -> 0 | H46: =Be!H244 -> 0 | I46: =Be!I244 -> 0 | J46: =Be!J244 -> 0 | L46: =Be!A242 -> 0
A47: 45. | B47: =Be!A245 -> 0 | C47: =Be!B245 -> 0 | D47: =Be!D245 -> 0 | E47: =Be!E245 -> 0 | F47: =Be!F245 -> 0 | G47: =Be!G245 -> 0 | H47: =Be!H245 -> 0 | I47: =Be!I245 -> 0 | J47: =Be!J245 -> 0 | L47: =Be!A242 -> 0
A48: 46. | B48: =Be!A254 -> 0 | C48: =Be!B254 -> 0 | D48: =Be!D254 -> 0 | E48: =Be!E254 -> 0 | F48: =Be!F254 -> 0 | G48: =Be!G254 -> 0 | H48: =Be!H254 -> 0 | I48: =Be!I254 -> 0 | J48: =Be!J254 -> 0 | L48: =Be!A252 -> 0
A49: 47. | B49: =Be!A255 -> 0 | C49: =Be!B255 -> 0 | D49: =Be!D255 -> 0 | E49: =Be!E255 -> 0 | F49: =Be!F255 -> 0 | G49: =Be!G255 -> 0 | H49: =Be!H255 -> 0 | I49: =Be!I255 -> 0 | J49: =Be!J255 -> 0 | L49: =Be!A252 -> 0
A50: 48. | B50: =Be!A7 -> 0 | C50: =Be!B7 -> 0 | D50: =Be!D7 -> 0 | E50: =Be!E7 -> 0 | F50: =Be!F7 -> 0 | G50: =Be!G7 -> 0 | H50: =Be!H7 -> 0 | I50: =Be!I7 -> 0 | J50: =Be!J7 -> 0 | L50: =Be!L7 -> 0
A51: 49. | B51: =Be!A8 -> 0 | C51: =Be!B8 -> 0 | D51: =Be!D8 -> 0 | E51: =Be!E8 -> 0 | F51: =Be!F8 -> 0 | G51: =Be!G8 -> 0 | H51: =Be!H8 -> 0 | I51: =Be!I8 -> 0 | J51: =Be!J8 -> 0 | L51: =Be!L8 -> 0
A52: 50. | B52: =Be!A9 -> 0 | C52: =Be!B9 -> 0 | D52: =Be!D9 -> 0 | E52: =Be!E9 -> 0 | F52: =Be!F9 -> 0 | G52: =Be!G9 -> 0 | H52: =Be!H9 -> 0 | I52: =Be!I9 -> 0 | J52: =Be!J9 -> 0 | L52: =Be!L9 -> 0
A53: 51. | B53: =Be!A10 -> 0 | C53: =Be!B10 -> 0 | D53: =Be!D10 -> 0 | E53: =Be!E10 -> 0 | F53: =Be!F10 -> 0 | G53: =Be!G10 -> 0 | H53: =Be!H10 -> 0 | I53: =Be!I10 -> 0 | J53: =Be!J10 -> 0 | L53: =Be!L10 -> 0
A54: 52. | B54: =Be!A11 -> 0 | C54: =Be!B11 -> 0 | D54: =Be!D11 -> 0 | E54: =Be!E11 -> 0 | F54: =Be!F11 -> 0 | G54: =Be!G11 -> 0 | H54: =Be!H11 -> 0 | I54: =Be!I11 -> 0 | J54: =Be!J11 -> 0 | L54: =Be!L11 -> 0
A55: 53. | B55: =Be!A12 -> 0 | C55: =Be!B12 -> 0 | D55: =Be!D12 -> 0 | E55: =Be!E12 -> 0 | F55: =Be!F12 -> 0 | G55: =Be!G12 -> 0 | H55: =Be!H12 -> 0 | I55: =Be!I12 -> 0 | J55: =Be!J12 -> 0 | L55: =Be!L12 -> 0
A56: 54. | B56: =Be!A13 -> 0 | C56: =Be!B13 -> 0 | D56: =Be!D13 -> 0 | E56: =Be!E13 -> 0 | F56: =Be!F13 -> 0 | G56: =Be!G13 -> 0 | H56: =Be!H13 -> 0 | I56: =Be!I13 -> 0 | J56: =Be!J13 -> 0 | L56: =Be!L13 -> 0
A57: 55. | B57: =Be!A14 -> 0 | C57: =Be!B14 -> 0 | D57: =Be!D14 -> 0 | E57: =Be!E14 -> 0 | F57: =Be!F14 -> 0 | G57: =Be!G14 -> 0 | H57: =Be!H14 -> 0 | I57: =Be!I14 -> 0 | J57: =Be!J14 -> 0 | L57: =Be!L14 -> 0
A58: 56. | B58: =Be!A15 -> 0 | C58: =Be!B15 -> 0 | D58: =Be!D15 -> 0 | E58: =Be!E15 -> 0 | F58: =Be!F15 -> 0 | G58: =Be!G15 -> 0 | H58: =Be!H15 -> 0 | I58: =Be!I15 -> 0 | J58: =Be!J15 -> 0 | L58: =Be!L15 -> 0
A135: 133.
A136: 134.
A137: 135.
A138: 136.
A139: 137.
A140: 138.
A141: 139.
A142: 140.
A143: 141.
A144: 142.
A145: 143.
A146: 144.
A147: 145.
A148: 146.
A149: 147.
A150: 148.
A151: 149.
A152: 150.
A153: 151.
A154: 152.
A155: 153.
A156: 154.

Sheet E. III. kcs
A1: Kis iskolák III. korcsoport FIÚ EGYÉNI végeredmény (Sorbarendezés Ctrl + f )
A2: Ssz | B2: Név | C2: Szév | D2: 100 m | E2: p | F2: Távol | G2: p | H2: Kisl | I2: p | J2: Összp | L2: Iskola
A3: 1. | B3: =Be!A117 -> Démuth Béla Kevin | C3: =Be!B117 -> 2010 | D3: =Be!D117 -> 8.4 | E3: =Be!E117 -> 189 | F3: =Be!F117 -> 5.01 | G3: =Be!G117 -> 149 | H3: =Be!H117 -> 50.9 | I3: =Be!I117 -> 139 | J3: =Be!J117 -> 477 | L3: =Be!A112 -> Pálfa, Simontornyai Vak Bottyán Általános Iskola és Gimnázium
A4: 2. | B4: =Be!A76 -> Máté Patrik | C4: =Be!B76 -> 2011 | D4: =Be!D76 -> 8.1 | E4: =Be!E76 -> 203 | F4: =Be!F76 -> 4.97 | G4: =Be!G76 -> 147 | H4: =Be!H76 -> 45 | I4: =Be!I76 -> 119 | J4: =Be!J76 -> 469 | L4: =Be!A72 -> Hőgyészi Hegyhát Általános Általános Iskola
A5: 3. | B5: =Be!A137 -> Török Balázs | C5: =Be!B137 -> 2010 | D5: =Be!D137 -> 8.7 | E5: =Be!E137 -> 175 | F5: =Be!F137 -> 4.84 | G5: =Be!G137 -> 140 | H5: =Be!H137 -> 36.75 | I5: =Be!I137 -> 93 | J5: =Be!J137 -> 408 | L5: =Be!A132 -> Várdomb-Alsónána Általános Iskola
A6: 4. | B6: =Be!A46 -> Kránicz Balázs | C6: =Be!B46 -> 2010 | D6: =Be!D46 -> 8.6 | E6: =Be!E46 -> 179 | F6: =Be!F46 -> 4.21 | G6: =Be!G46 -> 108 | H6: =Be!H46 -> 45 | I6: =Be!I46 -> 119 | J6: =Be!J46 -> 406 | L6: =Be!A42 -> Őcsényi Perczel Mór Általános Iskola
A7: 5. | B7: =Be!A106 -> Mayer Máté | C7: =Be!B106 -> 2010 | D7: =Be!D106 -> 9 | E7: =Be!E106 -> 161 | F7: =Be!F106 -> 4.34 | G7: =Be!G106 -> 115 | H7: =Be!H106 -> 42.3 | I7: =Be!I106 -> 111 | J7: =Be!J106 -> 387 | L7: =Be!A102 -> Kakasd, Bonyhádi Általános Iskola
A8: 6. | B8: =Be!A107 -> Moszbauer Balázs | C8: =Be!B107 -> 2010 | D8: =Be!D107 -> 8.9 | E8: =Be!E107 -> 165 | F8: =Be!F107 -> 4.41 | G8: =Be!G107 -> 118 | H8: =Be!H107 -> 40.15 | I8: =Be!I107 -> 103 | J8: =Be!J107 -> 386 | L8: =Be!A102 -> Kakasd, Bonyhádi Általános Iskola
A9: 7. | B9: =Be!A116 -> Budai Norbert | C9: =Be!B116 -> 2010 | D9: =Be!D116 -> 8.9 | E9: =Be!E116 -> 165 | F9: =Be!F116 -> 4 | G9: =Be!G116 -> 97 | H9: =Be!H116 -> 44.1 | I9: =Be!I116 -> 116 | J9: =Be!J116 -> 378 | L9: =Be!A112 -> Pálfa, Simontornyai Vak Bottyán Általános Iskola és Gimnázium
A10: 8. | B10: =Be!A57 -> Egyed János | C10: =Be!B57 -> 2010 | D10: =Be!D57 -> 9.2 | E10: =Be!E57 -> 152 | F10: =Be!F57 -> 4.2 | G10: =Be!G57 -> 107 | H10: =Be!H57 -> 42.3 | I10: =Be!I57 -> 111 | J10: =Be!J57 -> 370 | L10: =Be!A52 -> Kölesdi Béri Balogh Ádám Általános Iskola
A11: 9. | B11: =Be!A67 -> Viszlavszki Bence | C11: =Be!B67 -> 2011 | D11: =Be!D67 -> 9.2 | E11: =Be!E67 -> 152 | F11: =Be!F67 -> 4.23 | G11: =Be!G67 -> 109 | H11: =Be!H67 -> 37.7 | I11: =Be!I67 -> 96 | J11: =Be!J67 -> 357 | L11: =Be!A62 -> Kaposszekcsői Általános Iskola
A12: 10. | B12: =Be!A77 -> Mohácsi Zoltán | C12: =Be!B77 -> 2010 | D12: =Be!D77 -> 9.2 | E12: =Be!E77 -> 152 | F12: =Be!F77 -> 4.31 | G12: =Be!G77 -> 113 | H12: =Be!H77 -> 35.75 | I12: =Be!I77 -> 90 | J12: =Be!J77 -> 355 | L12: =Be!A72 -> Hőgyészi Hegyhát Általános Általános Iskola
A13: 11. | B13: =Be!A136 -> Major Erik Krisztián | C13: =Be!B136 -> 2010 | D13: =Be!D136 -> 8.9 | E13: =Be!E136 -> 165 | F13: =Be!F136 -> 4.02 | G13: =Be!G136 -> 98 | H13: =Be!H136 -> 35.3 | I13: =Be!I136 -> 89 | J13: =Be!J136 -> 352 | L13: =Be!A132 -> Várdomb-Alsónána Általános Iskola
A14: 12. | B14: =Be!A96 -> Janzsó Viktor | C14: =Be!B96 -> 2010 | D14: =Be!D96 -> 9.5 | E14: =Be!E96 -> 139 | F14: =Be!F96 -> 4.38 | G14: =Be!G96 -> 117 | H14: =Be!H96 -> 35.55 | I14: =Be!I96 -> 89 | J14: =Be!J96 -> 345 | L14: =Be!A92 -> Kurdi Körzeti Általános Iskola
A15: 13. | B15: =Be!A126 -> Nagy Norbert István | C15: =Be!B126 -> 2010 | D15: =Be!D126 -> 9.5 | E15: =Be!E126 -> 139 | F15: =Be!F126 -> 3.79 | G15: =Be!G126 -> 88 | H15: =Be!H126 -> 41.2 | I15: =Be!I126 -> 107 | J15: =Be!J126 -> 334 | L15: =Be!A122 -> Teveli Általános Iskola
A16: 14. | B16: =Be!A66 -> Megyeri Barna | C16: =Be!B66 -> 2011 | D16: =Be!D66 -> 9.7 | E16: =Be!E66 -> 131 | F16: =Be!F66 -> 4.7 | G16: =Be!G66 -> 133 | H16: =Be!H66 -> 28 | I16: =Be!I66 -> 67 | J16: =Be!J66 -> 331 | L16: =Be!A62 -> Kaposszekcsői Általános Iskola
A17: 15. | B17: =Be!A87 -> Józsa Flórián | C17: =Be!B87 -> 2011 | D17: =Be!D87 -> 9.5 | E17: =Be!E87 -> 139 | F17: =Be!F87 -> 4.02 | G17: =Be!G87 -> 98 | H17: =Be!H87 -> 37.1 | I17: =Be!I87 -> 94 | J17: =Be!J87 -> 331 | L17: =Be!A82 -> Decsi Bíborvég Általános Iskola
A18: 16. | B18: =Be!A19 -> Palkó András József | C18: =Be!B19 -> 2011 | D18: =Be!D19 -> 9 | E18: =Be!E19 -> 161 | F18: =Be!F19 -> 3.81 | G18: =Be!G19 -> 89 | H18: =Be!H19 -> 31.9 | I18: =Be!I19 -> 78 | J18: =Be!J19 -> 328 | L18: =Be!L19 -> Mórágy
A19: 17. | B19: =Be!A127 -> Torma Tamás Lajos | C19: =Be!B127 -> 2010 | D19: =Be!D127 -> 9.8 | E19: =Be!E127 -> 126 | F19: =Be!F127 -> 4.02 | G19: =Be!G127 -> 98 | H19: =Be!H127 -> 38.05 | I19: =Be!I127 -> 97 | J19: =Be!J127 -> 321 | L19: =Be!A122 -> Teveli Általános Iskola
A20: 18. | B20: =Be!A56 -> Barkóczi Imre Erik | C20: =Be!B56 -> 2011 | D20: =Be!D56 -> 9.8 | E20: =Be!E56 -> 126 | F20: =Be!F56 -> 3.81 | G20: =Be!G56 -> 89 | H20: =Be!H56 -> 37.6 | I20: =Be!I56 -> 95 | J20: =Be!J56 -> 310 | L20: =Be!A52 -> Kölesdi Béri Balogh Ádám Általános Iskola
A21: 19. | B21: =Be!A97 -> Kocsándi Martin Máté | C21: =Be!B97 -> 2010 | D21: =Be!D97 -> 9.5 | E21: =Be!E97 -> 139 | F21: =Be!F97 -> 3.62 | G21: =Be!G97 -> 80 | H21: =Be!H97 -> 36.05 | I21: =Be!I97 -> 91 | J21: =Be!J97 -> 310 | L21: =Be!A92 -> Kurdi Körzeti Általános Iskola
A22: 20. | B22: =Be!A17 -> Franek Bene | C22: =Be!B17 -> 2010 | D22: =Be!D17 -> 9.5 | E22: =Be!E17 -> 139 | F22: =Be!F17 -> 4.21 | G22: =Be!G17 -> 108 | H22: =Be!H17 -> 26 | I22: =Be!I17 -> 61 | J22: =Be!J17 -> 308 | L22: =Be!L17 -> Mórágy
A23: 21. | B23: =Be!A47 -> Onoka Zsombor Patik | C23: =Be!B47 -> 2011 | D23: =Be!D47 -> 9.2 | E23: =Be!E47 -> 152 | F23: =Be!F47 -> 3.74 | G23: =Be!G47 -> 85 | H23: =Be!H47 -> 29.05 | I23: =Be!I47 -> 70 | J23: =Be!J47 -> 307 | L23: =Be!A42 -> Őcsényi Perczel Mór Általános Iskola
A24: 22. | B24: =Be!A86 -> Csicsó Milán | C24: =Be!B86 -> 2011 | D24: =Be!D86 -> 9.6 | E24: =Be!E86 -> 135 | F24: =Be!F86 -> 4.11 | G24: =Be!G86 -> 103 | H24: =Be!H86 -> 28.35 | I24: =Be!I86 -> 68 | J24: =Be!J86 -> 306 | L24: =Be!A82 -> Decsi Bíborvég Általános Iskola
A25: 23. | B25: =Be!A18 -> Franek Botond | C25: =Be!B18 -> 2010 | D25: =Be!D18 -> 9.5 | E25: =Be!E18 -> 139 | F25: =Be!F18 -> 3.71 | G25: =Be!G18 -> 84 | H25: =Be!H18 -> 29.1 | I25: =Be!I18 -> 70 | J25: =Be!J18 -> 293 | L25: =Be!L18 -> Mórágy
A26: 24. | B26: =Be!A16 -> Bíró Sándor | C26: =Be!B16 -> 2010 | D26: =Be!D16 -> 11.7 | E26: =Be!E16 -> 52 | F26: =Be!F16 -> 2.92 | G26: =Be!G16 -> 48 | H26: =Be!H16 -> 29.6 | I26: =Be!I16 -> 72 | J26: =Be!J16 -> 172 | L26: =Be!L16 -> Mórágy
A27: 25. | B27: =Be!A256 -> 0 | C27: =Be!B256 -> 0 | D27: =Be!D256 -> 0 | E27: =Be!E256 -> 0 | F27: =Be!F256 -> 0 | G27: =Be!G256 -> 0 | H27: =Be!H256 -> 0 | I27: =Be!I256 -> 0 | J27: =Be!J256 -> 0 | L27: =Be!A252 -> 0
A28: 26. | B28: =Be!A257 -> 0 | C28: =Be!B257 -> 0 | D28: =Be!D257 -> 0 | E28: =Be!E257 -> 0 | F28: =Be!F257 -> 0 | G28: =Be!G257 -> 0 | H28: =Be!H257 -> 0 | I28: =Be!I257 -> 0 | J28: =Be!J257 -> 0 | L28: =Be!A252 -> 0
A29: 27. | B29: =Be!A146 -> 0 | C29: =Be!B146 -> 0 | D29: =Be!D146 -> 0 | E29: =Be!E146 -> 0 | F29: =Be!F146 -> 0 | G29: =Be!G146 -> 0 | H29: =Be!H146 -> 0 | I29: =Be!I146 -> 0 | J29: =Be!J146 -> 0 | L29: =Be!A142 -> 0
A30: 28. | B30: =Be!A147 -> 0 | C30: =Be!B147 -> 0 | D30: =Be!D147 -> 0 | E30: =Be!E147 -> 0 | F30: =Be!F147 -> 0 | G30: =Be!G147 -> 0 | H30: =Be!H147 -> 0 | I30: =Be!I147 -> 0 | J30: =Be!J147 -> 0 | L30: =Be!A142 -> 0
A31: 29. | B31: =Be!A156 -> 0 | C31: =Be!B156 -> 0 | D31: =Be!D156 -> 0 | E31: =Be!E156 -> 0 | F31: =Be!F156 -> 0 | G31: =Be!G156 -> 0 | H31: =Be!H156 -> 0 | I31: =Be!I156 -> 0 | J31: =Be!J156 -> 0 | L31: =Be!A152 -> 0
A32: 30. | B32: =Be!A157 -> 0 | C32: =Be!B157 -> 0 | D32: =Be!D157 -> 0 | E32: =Be!E157 -> 0 | F32: =Be!F157 -> 0 | G32: =Be!G157 -> 0 | H32: =Be!H157 -> 0 | I32: =Be!I157 -> 0 | J32: =Be!J157 -> 0 | L32: =Be!A152 -> 0
A33: 31. | B33: =Be!A166 -> 0 | C33: =Be!B166 -> 0 | D33: =Be!D166 -> 0 | E33: =Be!E166 -> 0 | F33: =Be!F166 -> 0 | G33: =Be!G166 -> 0 | H33: =Be!H166 -> 0 | I33: =Be!I166 -> 0 | J33: =Be!J166 -> 0 | L33: =Be!A162 -> 0
A34: 32. | B34: =Be!A167 -> 0 | C34: =Be!B167 -> 0 | D34: =Be!D167 -> 0 | E34: =Be!E167 -> 0 | F34: =Be!F167 -> 0 | G34: =Be!G167 -> 0 | H34: =Be!H167 -> 0 | I34: =Be!I167 -> 0 | J34: =Be!J167 -> 0 | L34: =Be!A162 -> 0
A35: 33. | B35: =Be!A176 -> 0 | C35: =Be!B176 -> 0 | D35: =Be!D176 -> 0 | E35: =Be!E176 -> 0 | F35: =Be!F176 -> 0 | G35: =Be!G176 -> 0 | H35: =Be!H176 -> 0 | I35: =Be!I176 -> 0 | J35: =Be!J176 -> 0 | L35: =Be!A172 -> 0
A36: 34. | B36: =Be!A177 -> 0 | C36: =Be!B177 -> 0 | D36: =Be!D177 -> 0 | E36: =Be!E177 -> 0 | F36: =Be!F177 -> 0 | G36: =Be!G177 -> 0 | H36: =Be!H177 -> 0 | I36: =Be!I177 -> 0 | J36: =Be!J177 -> 0 | L36: =Be!A172 -> 0
A37: 35. | B37: =Be!A186 -> 0 | C37: =Be!B186 -> 0 | D37: =Be!D186 -> 0 | E37: =Be!E186 -> 0 | F37: =Be!F186 -> 0 | G37: =Be!G186 -> 0 | H37: =Be!H186 -> 0 | I37: =Be!I186 -> 0 | J37: =Be!J186 -> 0 | L37: =Be!A182 -> 0
A38: 36. | B38: =Be!A187 -> 0 | C38: =Be!B187 -> 0 | D38: =Be!D187 -> 0 | E38: =Be!E187 -> 0 | F38: =Be!F187 -> 0 | G38: =Be!G187 -> 0 | H38: =Be!H187 -> 0 | I38: =Be!I187 -> 0 | J38: =Be!J187 -> 0 | L38: =Be!A182 -> 0
A39: 37. | B39: =Be!A196 -> 0 | C39: =Be!B196 -> 0 | D39: =Be!D196 -> 0 | E39: =Be!E196 -> 0 | F39: =Be!F196 -> 0 | G39: =Be!G196 -> 0 | H39: =Be!H196 -> 0 | I39: =Be!I196 -> 0 | J39: =Be!J196 -> 0 | L39: =Be!A192 -> 0
A40: 38. | B40: =Be!A197 -> 0 | C40: =Be!B197 -> 0 | D40: =Be!D197 -> 0 | E40: =Be!E197 -> 0 | F40: =Be!F197 -> 0 | G40: =Be!G197 -> 0 | H40: =Be!H197 -> 0 | I40: =Be!I197 -> 0 | J40: =Be!J197 -> 0 | L40: =Be!A192 -> 0
A41: 39. | B41: =Be!A206 -> 0 | C41: =Be!B206 -> 0 | D41: =Be!D206 -> 0 | E41: =Be!E206 -> 0 | F41: =Be!F206 -> 0 | G41: =Be!G206 -> 0 | H41: =Be!H206 -> 0 | I41: =Be!I206 -> 0 | J41: =Be!J206 -> 0 | L41: =Be!A202 -> 0
A42: 40. | B42: =Be!A207 -> 0 | C42: =Be!B207 -> 0 | D42: =Be!D207 -> 0 | E42: =Be!E207 -> 0 | F42: =Be!F207 -> 0 | G42: =Be!G207 -> 0 | H42: =Be!H207 -> 0 | I42: =Be!I207 -> 0 | J42: =Be!J207 -> 0 | L42: =Be!A202 -> 0
A43: 41. | B43: =Be!A216 -> 0 | C43: =Be!B216 -> 0 | D43: =Be!D216 -> 0 | E43: =Be!E216 -> 0 | F43: =Be!F216 -> 0 | G43: =Be!G216 -> 0 | H43: =Be!H216 -> 0 | I43: =Be!I216 -> 0 | J43: =Be!J216 -> 0 | L43: =Be!A212 -> 0
A44: 42. | B44: =Be!A217 -> 0 | C44: =Be!B217 -> 0 | D44: =Be!D217 -> 0 | E44: =Be!E217 -> 0 | F44: =Be!F217 -> 0 | G44: =Be!G217 -> 0 | H44: =Be!H217 -> 0 | I44: =Be!I217 -> 0 | J44: =Be!J217 -> 0 | L44: =Be!A212 -> 0
A45: 43. | B45: =Be!A226 -> 0 | C45: =Be!B226 -> 0 | D45: =Be!D226 -> 0 | E45: =Be!E226 -> 0 | F45: =Be!F226 -> 0 | G45: =Be!G226 -> 0 | H45: =Be!H226 -> 0 | I45: =Be!I226 -> 0 | J45: =Be!J226 -> 0 | L45: =Be!A222 -> 0
A46: 44. | B46: =Be!A227 -> 0 | C46: =Be!B227 -> 0 | D46: =Be!D227 -> 0 | E46: =Be!E227 -> 0 | F46: =Be!F227 -> 0 | G46: =Be!G227 -> 0 | H46: =Be!H227 -> 0 | I46: =Be!I227 -> 0 | J46: =Be!J227 -> 0 | L46: =Be!A222 -> 0
A47: 45. | B47: =Be!A236 -> 0 | C47: =Be!B236 -> 0 | D47: =Be!D236 -> 0 | E47: =Be!E236 -> 0 | F47: =Be!F236 -> 0 | G47: =Be!G236 -> 0 | H47: =Be!H236 -> 0 | I47: =Be!I236 -> 0 | J47: =Be!J236 -> 0 | L47: =Be!A232 -> 0
A48: 46. | B48: =Be!A237 -> 0 | C48: =Be!B237 -> 0 | D48: =Be!D237 -> 0 | E48: =Be!E237 -> 0 | F48: =Be!F237 -> 0 | G48: =Be!G237 -> 0 | H48: =Be!H237 -> 0 | I48: =Be!I237 -> 0 | J48: =Be!J237 -> 0 | L48: =Be!A232 -> 0
A49: 47. | B49: =Be!A246 -> 0 | C49: =Be!B246 -> 0 | D49: =Be!D246 -> 0 | E49: =Be!E246 -> 0 | F49: =Be!F246 -> 0 | G49: =Be!G246 -> 0 | H49: =Be!H246 -> 0 | I49: =Be!I246 -> 0 | J49: =Be!J246 -> 0 | L49: =Be!A242 -> 0
A50: 48. | B50: =Be!A247 -> 0 | C50: =Be!B247 -> 0 | D50: =Be!D247 -> 0 | E50: =Be!E247 -> 0 | F50: =Be!F247 -> 0 | G50: =Be!G247 -> 0 | H50: =Be!H247 -> 0 | I50: =Be!I247 -> 0 | J50: =Be!J247 -> 0 | L50: =Be!A242 -> 0
A51: 49. | B51: =Be!A20 -> 0 | C51: =Be!B20 -> 0 | D51: =Be!D20 -> 0 | E51: =Be!E20 -> 0 | F51: =Be!F20 -> 0 | G51: =Be!G20 -> 0 | H51: =Be!H20 -> 0 | I51: =Be!I20 -> 0 | J51: =Be!J20 -> 0 | L51: =Be!L20 -> 0
A52: 50. | B52: =Be!A21 -> 0 | C52: =Be!B21 -> 0 | D52: =Be!D21 -> 0 | E52: =Be!E21 -> 0 | F52: =Be!F21 -> 0 | G52: =Be!G21 -> 0 | H52: =Be!H21 -> 0 | I52: =Be!I21 -> 0 | J52: =Be!J21 -> 0 | L52: =Be!L21 -> 0
A53: 51. | B53: =Be!A22 -> 0 | C53: =Be!B22 -> 0 | D53: =Be!D22 -> 0 | E53: =Be!E22 -> 0 | F53: =Be!F22 -> 0 | G53: =Be!G22 -> 0 | H53: =Be!H22 -> 0 | I53: =Be!I22 -> 0 | J53: =Be!J22 -> 0 | L53: =Be!L22 -> 0
A54: 52. | B54: =Be!A23 -> 0 | C54: =Be!B23 -> 0 | D54: =Be!D23 -> 0 | E54: =Be!E23 -> 0 | F54: =Be!F23 -> 0 | G54: =Be!G23 -> 0 | H54: =Be!H23 -> 0 | I54: =Be!I23 -> 0 | J54: =Be!J23 -> 0 | L54: =Be!L23 -> 0
A55: 53. | B55: =Be!A24 -> 0 | C55: =Be!B24 -> 0 | D55: =Be!D24 -> 0 | E55: =Be!E24 -> 0 | F55: =Be!F24 -> 0 | G55: =Be!G24 -> 0 | H55: =Be!H24 -> 0 | I55: =Be!I24 -> 0 | J55: =Be!J24 -> 0 | L55: =Be!L24 -> 0
A56: 54. | B56: =Be!A25 -> 0 | C56: =Be!B25 -> 0 | D56: =Be!D25 -> 0 | E56: =Be!E25 -> 0 | F56: =Be!F25 -> 0 | G56: =Be!G25 -> 0 | H56: =Be!H25 -> 0 | I56: =Be!I25 -> 0 | J56: =Be!J25 -> 0 | L56: =Be!L25 -> 0
A57: 55. | B57: =Be!A26 -> 0 | C57: =Be!B26 -> 0 | D57: =Be!D26 -> 0 | E57: =Be!E26 -> 0 | F57: =Be!F26 -> 0 | G57: =Be!G26 -> 0 | H57: =Be!H26 -> 0 | I57: =Be!I26 -> 0 | J57: =Be!J26 -> 0 | L57: =Be!L26 -> 0
A58: 56. | B58: =Be!A27 -> 0 | C58: =Be!B27 -> 0 | D58: =Be!D27 -> 0 | E58: =Be!E27 -> 0 | F58: =Be!F27 -> 0 | G58: =Be!G27 -> 0 | H58: =Be!H27 -> 0 | I58: =Be!I27 -> 0 | J58: =Be!J27 -> 0 | L58: =Be!L27 -> 0

Sheet E. IV. kcs
A1: Kis iskolák IV. korcsoport Fiú EGYÉNI végeredmény (Sorbarendezés Ctrl + g )
A2: Ssz | B2: Név | C2: Szév | D2: 100 m | E2: p | F2: Távol | G2: p | H2: Kisl | I2: p | J2: Összp | L2: Iskola
A3: 1. | B3: =Be!A99 -> Speigler Krisztofer János | C3: =Be!B99 -> 2008 | D3: =Be!D99 -> 13.3 | E3: =Be!E99 -> 169 | F3: =Be!F99 -> 5.44 | G3: =Be!G99 -> 173 | H3: =Be!H99 -> 60.9 | I3: =Be!I99 -> 174 | J3: =Be!J99 -> 516 | L3: =Be!A92 -> Kurdi Körzeti Általános Iskola
A4: 2. | B4: =Be!A89 -> Baráth Brendon | C4: =Be!B89 -> 2008 | D4: =Be!D89 -> 13.3 | E4: =Be!E89 -> 169 | F4: =Be!F89 -> 5.5 | G4: =Be!G89 -> 176 | H4: =Be!H89 -> 50.95 | I4: =Be!I89 -> 139 | J4: =Be!J89 -> 484 | L4: =Be!A82 -> Decsi Bíborvég Általános Iskola
A5: 3. | B5: =Be!A48 -> Faragó Zoltán | C5: =Be!B48 -> 2008 | D5: =Be!D48 -> 12.7 | E5: =Be!E48 -> 191 | F5: =Be!F48 -> 5.41 | G5: =Be!G48 -> 171 | H5: =Be!H48 -> 44.3 | I5: =Be!I48 -> 117 | J5: =Be!J48 -> 479 | L5: =Be!A42 -> Őcsényi Perczel Mór Általános Iskola
A6: 4. | B6: =Be!A108 -> Szabó Barna | C6: =Be!B108 -> 2008 | D6: =Be!D108 -> 12.9 | E6: =Be!E108 -> 184 | F6: =Be!F108 -> 5.01 | G6: =Be!G108 -> 149 | H6: =Be!H108 -> 41.4 | I6: =Be!I108 -> 108 | J6: =Be!J108 -> 441 | L6: =Be!A102 -> Kakasd, Bonyhádi Általános Iskola
A7: 5. | B7: =Be!A98 -> Orsós Nándor | C7: =Be!B98 -> 2008 | D7: =Be!D98 -> 13.2 | E7: =Be!E98 -> 173 | F7: =Be!F98 -> 5.11 | G7: =Be!G98 -> 154 | H7: =Be!H98 -> 42.95 | I7: =Be!I98 -> 113 | J7: =Be!J98 -> 440 | L7: =Be!A92 -> Kurdi Körzeti Általános Iskola
A8: 6. | B8: =Be!A68 -> Antal Bálint | C8: =Be!B68 -> 2008 | D8: =Be!D68 -> 12.9 | E8: =Be!E68 -> 184 | F8: =Be!F68 -> 4.97 | G8: =Be!G68 -> 147 | H8: =Be!H68 -> 38.3 | I8: =Be!I68 -> 98 | J8: =Be!J68 -> 429 | L8: =Be!A62 -> Kaposszekcsői Általános Iskola
A9: 7. | B9: =Be!A118 -> Deres Dávid | C9: =Be!B118 -> 2008 | D9: =Be!D118 -> 14.4 | E9: =Be!E118 -> 132 | F9: =Be!F118 -> 5.04 | G9: =Be!G118 -> 150 | H9: =Be!H118 -> 53 | I9: =Be!I118 -> 146 | J9: =Be!J118 -> 428 | L9: =Be!A112 -> Pálfa, Simontornyai Vak Bottyán Általános Iskola és Gimnázium
A10: 8. | B10: =Be!A79 -> Sasi Márkus | C10: =Be!B79 -> 2009 | D10: =Be!D79 -> 13.1 | E10: =Be!E79 -> 176 | F10: =Be!F79 -> 4.87 | G10: =Be!G79 -> 142 | H10: =Be!H79 -> 41.85 | I10: =Be!I79 -> 109 | J10: =Be!J79 -> 427 | L10: =Be!A72 -> Hőgyészi Hegyhát Általános Általános Iskola
A11: 9. | B11: =Be!A78 -> Orsós Martin | C11: =Be!B78 -> 2008 | D11: =Be!D78 -> 13.2 | E11: =Be!E78 -> 173 | F11: =Be!F78 -> 4.95 | G11: =Be!G78 -> 146 | H11: =Be!H78 -> 38.65 | I11: =Be!I78 -> 99 | J11: =Be!J78 -> 418 | L11: =Be!A72 -> Hőgyészi Hegyhát Általános Általános Iskola
A12: 10. | B12: =Be!A109 -> Sztehló Olivér | C12: =Be!B109 -> 2008 | D12: =Be!D109 -> 13.2 | E12: =Be!E109 -> 173 | F12: =Be!F109 -> 4.7 | G12: =Be!G109 -> 133 | H12: =Be!H109 -> 40.7 | I12: =Be!I109 -> 105 | J12: =Be!J109 -> 411 | L12: =Be!A102 -> Kakasd, Bonyhádi Általános Iskola
A13: 11. | B13: =Be!A138 -> Csitkovics Milán Gábor | C13: =Be!B138 -> 2009 | D13: =Be!D138 -> 14.2 | E13: =Be!E138 -> 138 | F13: =Be!F138 -> 4.45 | G13: =Be!G138 -> 120 | H13: =Be!H138 -> 48.7 | I13: =Be!I138 -> 132 | J13: =Be!J138 -> 390 | L13: =Be!A132 -> Várdomb-Alsónána Általános Iskola
A14: 12. | B14: =Be!A58 -> Koller Dominik | C14: =Be!B58 -> 2009 | D14: =Be!D58 -> 13.7 | E14: =Be!E58 -> 155 | F14: =Be!F58 -> 4.6 | G14: =Be!G58 -> 128 | H14: =Be!H58 -> 38.6 | I14: =Be!I58 -> 98 | J14: =Be!J58 -> 381 | L14: =Be!A52 -> Kölesdi Béri Balogh Ádám Általános Iskola
A15: 13. | B15: =Be!A59 -> Sienkiewicz Attila Róbert | C15: =Be!B59 -> 2008 | D15: =Be!D59 -> 13.4 | E15: =Be!E59 -> 166 | F15: =Be!F59 -> 4.55 | G15: =Be!G59 -> 125 | H15: =Be!H59 -> 32.1 | I15: =Be!I59 -> 79 | J15: =Be!J59 -> 370 | L15: =Be!A52 -> Kölesdi Béri Balogh Ádám Általános Iskola
A16: 14. | B16: =Be!A29 -> Pató Bálint | C16: =Be!B29 -> 2008 | D16: =Be!D29 -> 14.6 | E16: =Be!E29 -> 126 | F16: =Be!F29 -> 4.38 | G16: =Be!G29 -> 117 | H16: =Be!H29 -> 46.8 | I16: =Be!I29 -> 125 | J16: =Be!J29 -> 368 | L16: =Be!L29 -> Kölesd
A17: 15. | B17: =Be!A129 -> Nagy Ármin | C17: =Be!B129 -> 2008 | D17: =Be!D129 -> 14.1 | E17: =Be!E129 -> 142 | F17: =Be!F129 -> 4.28 | G17: =Be!G129 -> 111 | H17: =Be!H129 -> 42.9 | I17: =Be!I129 -> 112 | J17: =Be!J129 -> 365 | L17: =Be!A122 -> Teveli Általános Iskola
A18: 16. | B18: =Be!A49 -> Nagy Áron | C18: =Be!B49 -> 2008 | D18: =Be!D49 -> 14.2 | E18: =Be!E49 -> 138 | F18: =Be!F49 -> 4.68 | G18: =Be!G49 -> 132 | H18: =Be!H49 -> 37.1 | I18: =Be!I49 -> 94 | J18: =Be!J49 -> 364 | L18: =Be!A42 -> Őcsényi Perczel Mór Általános Iskola
A19: 17. | B19: =Be!A69 -> Zsolnai Alex | C19: =Be!B69 -> 2008 | D19: =Be!D69 -> 14.3 | E19: =Be!E69 -> 135 | F19: =Be!F69 -> 4.29 | G19: =Be!G69 -> 112 | H19: =Be!H69 -> 42.7 | I19: =Be!I69 -> 112 | J19: =Be!J69 -> 359 | L19: =Be!A62 -> Kaposszekcsői Általános Iskola
A20: 18. | B20: =Be!A88 -> Akay Márk | C20: =Be!B88 -> 2009 | D20: =Be!D88 -> 13.6 | E20: =Be!E88 -> 159 | F20: =Be!F88 -> 4.24 | G20: =Be!G88 -> 109 | H20: =Be!H88 -> 36 | I20: =Be!I88 -> 91 | J20: =Be!J88 -> 359 | L20: =Be!A82 -> Decsi Bíborvég Általános Iskola
A21: 19. | B21: =Be!A30 -> Tóth József | C21: =Be!B30 -> 2008 | D21: =Be!D30 -> 14.8 | E21: =Be!E30 -> 119 | F21: =Be!F30 -> 4.62 | G21: =Be!G30 -> 129 | H21: =Be!H30 -> 40.6 | I21: =Be!I30 -> 105 | J21: =Be!J30 -> 353 | L21: =Be!L30 -> Mórágy
A22: 20. | B22: =Be!A119 -> Kovács Péter | C22: =Be!B119 -> 2008 | D22: =Be!D119 -> 15.4 | E22: =Be!E119 -> 100 | F22: =Be!F119 -> 4.81 | G22: =Be!G119 -> 139 | H22: =Be!H119 -> 42.5 | I22: =Be!I119 -> 111 | J22: =Be!J119 -> 350 | L22: =Be!A112 -> Pálfa, Simontornyai Vak Bottyán Általános Iskola és Gimnázium
A23: 21. | B23: =Be!A128 -> Lakatos Rudolf Krisztofer | C23: =Be!B128 -> 2009 | D23: =Be!D128 -> 13.9 | E23: =Be!E128 -> 148 | F23: =Be!F128 -> 4.24 | G23: =Be!G128 -> 109 | H23: =Be!H128 -> 36.9 | I23: =Be!I128 -> 93 | J23: =Be!J128 -> 350 | L23: =Be!A122 -> Teveli Általános Iskola
A24: 22. | B24: =Be!A31 -> Kis Miron | C24: =Be!B31 -> 2008 | D24: =Be!D31 -> 14.4 | E24: =Be!E31 -> 132 | F24: =Be!F31 -> 4.24 | G24: =Be!G31 -> 109 | H24: =Be!H31 -> 36.5 | I24: =Be!I31 -> 92 | J24: =Be!J31 -> 333 | L24: =Be!L31 -> Mórágy
A25: 23. | B25: =Be!A28 -> Palkó Nimród | C25: =Be!B28 -> 2009 | D25: =Be!D28 -> 14.8 | E25: =Be!E28 -> 119 | F25: =Be!F28 -> 4.1 | G25: =Be!G28 -> 102 | H25: =Be!H28 -> 39.1 | I25: =Be!I28 -> 100 | J25: =Be!J28 -> 321 | L25: =Be!L28 -> Kakasd
A26: 24. | B26: =Be!A139 -> Nyíregyházi Csanád László | C26: =Be!B139 -> 2008 | D26: =Be!D139 -> 15.8 | E26: =Be!E139 -> 88 | F26: =Be!F139 -> 4.04 | G26: =Be!G139 -> 99 | H26: =Be!H139 -> 47.5 | I26: =Be!I139 -> 128 | J26: =Be!J139 -> 315 | L26: =Be!A132 -> Várdomb-Alsónána Általános Iskola
A27: 25. | B27: =Be!A258 -> 0 | C27: =Be!B258 -> 0 | D27: =Be!D258 -> 0 | E27: =Be!E258 -> 0 | F27: =Be!F258 -> 0 | G27: =Be!G258 -> 0 | H27: =Be!H258 -> 0 | I27: =Be!I258 -> 0 | J27: =Be!J258 -> 0 | L27: =Be!A252 -> 0
A28: 26. | B28: =Be!A259 -> 0 | C28: =Be!B259 -> 0 | D28: =Be!D259 -> 0 | E28: =Be!E259 -> 0 | F28: =Be!F259 -> 0 | G28: =Be!G259 -> 0 | H28: =Be!H259 -> 0 | I28: =Be!I259 -> 0 | J28: =Be!J259 -> 0 | L28: =Be!A252 -> 0
A29: 27. | B29: =Be!A148 -> 0 | C29: =Be!B148 -> 0 | D29: =Be!D148 -> 0 | E29: =Be!E148 -> 0 | F29: =Be!F148 -> 0 | G29: =Be!G148 -> 0 | H29: =Be!H148 -> 0 | I29: =Be!I148 -> 0 | J29: =Be!J148 -> 0 | L29: =Be!A142 -> 0
A30: 28. | B30: =Be!A149 -> 0 | C30: =Be!B149 -> 0 | D30: =Be!D149 -> 0 | E30: =Be!E149 -> 0 | F30: =Be!F149 -> 0 | G30: =Be!G149 -> 0 | H30: =Be!H149 -> 0 | I30: =Be!I149 -> 0 | J30: =Be!J149 -> 0 | L30: =Be!A142 -> 0
A31: 29. | B31: =Be!A158 -> 0 | C31: =Be!B158 -> 0 | D31: =Be!D158 -> 0 | E31: =Be!E158 -> 0 | F31: =Be!F158 -> 0 | G31: =Be!G158 -> 0 | H31: =Be!H158 -> 0 | I31: =Be!I158 -> 0 | J31: =Be!J158 -> 0 | L31: =Be!A152 -> 0
A32: 30. | B32: =Be!A159 -> 0 | C32: =Be!B159 -> 0 | D32: =Be!D159 -> 0 | E32: =Be!E159 -> 0 | F32: =Be!F159 -> 0 | G32: =Be!G159 -> 0 | H32: =Be!H159 -> 0 | I32: =Be!I159 -> 0 | J32: =Be!J159 -> 0 | L32: =Be!A152 -> 0
A33: 31. | B33: =Be!A168 -> 0 | C33: =Be!B168 -> 0 | D33: =Be!D168 -> 0 | E33: =Be!E168 -> 0 | F33: =Be!F168 -> 0 | G33: =Be!G168 -> 0 | H33: =Be!H168 -> 0 | I33: =Be!I168 -> 0 | J33: =Be!J168 -> 0 | L33: =Be!A162 -> 0
A34: 32. | B34: =Be!A169 -> 0 | C34: =Be!B169 -> 0 | D34: =Be!D169 -> 0 | E34: =Be!E169 -> 0 | F34: =Be!F169 -> 0 | G34: =Be!G169 -> 0 | H34: =Be!H169 -> 0 | I34: =Be!I169 -> 0 | J34: =Be!J169 -> 0 | L34: =Be!A162 -> 0
A35: 33. | B35: =Be!A178 -> 0 | C35: =Be!B178 -> 0 | D35: =Be!D178 -> 0 | E35: =Be!E178 -> 0 | F35: =Be!F178 -> 0 | G35: =Be!G178 -> 0 | H35: =Be!H178 -> 0 | I35: =Be!I178 -> 0 | J35: =Be!J178 -> 0 | L35: =Be!A172 -> 0
A36: 34. | B36: =Be!A179 -> 0 | C36: =Be!B179 -> 0 | D36: =Be!D179 -> 0 | E36: =Be!E179 -> 0 | F36: =Be!F179 -> 0 | G36: =Be!G179 -> 0 | H36: =Be!H179 -> 0 | I36: =Be!I179 -> 0 | J36: =Be!J179 -> 0 | L36: =Be!A172 -> 0
A37: 35. | B37: =Be!A188 -> 0 | C37: =Be!B188 -> 0 | D37: =Be!D188 -> 0 | E37: =Be!E188 -> 0 | F37: =Be!F188 -> 0 | G37: =Be!G188 -> 0 | H37: =Be!H188 -> 0 | I37: =Be!I188 -> 0 | J37: =Be!J188 -> 0 | L37: =Be!A182 -> 0
A38: 36. | B38: =Be!A189 -> 0 | C38: =Be!B189 -> 0 | D38: =Be!D189 -> 0 | E38: =Be!E189 -> 0 | F38: =Be!F189 -> 0 | G38: =Be!G189 -> 0 | H38: =Be!H189 -> 0 | I38: =Be!I189 -> 0 | J38: =Be!J189 -> 0 | L38: =Be!A182 -> 0
A39: 37. | B39: =Be!A198 -> 0 | C39: =Be!B198 -> 0 | D39: =Be!D198 -> 0 | E39: =Be!E198 -> 0 | F39: =Be!F198 -> 0 | G39: =Be!G198 -> 0 | H39: =Be!H198 -> 0 | I39: =Be!I198 -> 0 | J39: =Be!J198 -> 0 | L39: =Be!A192 -> 0
A40: 38. | B40: =Be!A199 -> 0 | C40: =Be!B199 -> 0 | D40: =Be!D199 -> 0 | E40: =Be!E199 -> 0 | F40: =Be!F199 -> 0 | G40: =Be!G199 -> 0 | H40: =Be!H199 -> 0 | I40: =Be!I199 -> 0 | J40: =Be!J199 -> 0 | L40: =Be!A192 -> 0
A41: 39. | B41: =Be!A208 -> 0 | C41: =Be!B208 -> 0 | D41: =Be!D208 -> 0 | E41: =Be!E208 -> 0 | F41: =Be!F208 -> 0 | G41: =Be!G208 -> 0 | H41: =Be!H208 -> 0 | I41: =Be!I208 -> 0 | J41: =Be!J208 -> 0 | L41: =Be!A202 -> 0
A42: 40. | B42: =Be!A209 -> 0 | C42: =Be!B209 -> 0 | D42: =Be!D209 -> 0 | E42: =Be!E209 -> 0 | F42: =Be!F209 -> 0 | G42: =Be!G209 -> 0 | H42: =Be!H209 -> 0 | I42: =Be!I209 -> 0 | J42: =Be!J209 -> 0 | L42: =Be!A202 -> 0
A43: 41. | B43: =Be!A218 -> 0 | C43: =Be!B218 -> 0 | D43: =Be!D218 -> 0 | E43: =Be!E218 -> 0 | F43: =Be!F218 -> 0 | G43: =Be!G218 -> 0 | H43: =Be!H218 -> 0 | I43: =Be!I218 -> 0 | J43: =Be!J218 -> 0 | L43: =Be!A212 -> 0
A44: 42. | B44: =Be!A219 -> 0 | C44: =Be!B219 -> 0 | D44: =Be!D219 -> 0 | E44: =Be!E219 -> 0 | F44: =Be!F219 -> 0 | G44: =Be!G219 -> 0 | H44: =Be!H219 -> 0 | I44: =Be!I219 -> 0 | J44: =Be!J219 -> 0 | L44: =Be!A212 -> 0
A45: 43. | B45: =Be!A228 -> 0 | C45: =Be!B228 -> 0 | D45: =Be!D228 -> 0 | E45: =Be!E228 -> 0 | F45: =Be!F228 -> 0 | G45: =Be!G228 -> 0 | H45: =Be!H228 -> 0 | I45: =Be!I228 -> 0 | J45: =Be!J228 -> 0 | L45: =Be!A222 -> 0
A46: 44. | B46: =Be!A229 -> 0 | C46: =Be!B229 -> 0 | D46: =Be!D229 -> 0 | E46: =Be!E229 -> 0 | F46: =Be!F229 -> 0 | G46: =Be!G229 -> 0 | H46: =Be!H229 -> 0 | I46: =Be!I229 -> 0 | J46: =Be!J229 -> 0 | L46: =Be!A222 -> 0
A47: 45. | B47: =Be!A238 -> 0 | C47: =Be!B238 -> 0 | D47: =Be!D238 -> 0 | E47: =Be!E238 -> 0 | F47: =Be!F238 -> 0 | G47: =Be!G238 -> 0 | H47: =Be!H238 -> 0 | I47: =Be!I238 -> 0 | J47: =Be!J238 -> 0 | L47: =Be!A232 -> 0
A48: 46. | B48: =Be!A239 -> 0 | C48: =Be!B239 -> 0 | D48: =Be!D239 -> 0 | E48: =Be!E239 -> 0 | F48: =Be!F239 -> 0 | G48: =Be!G239 -> 0 | H48: =Be!H239 -> 0 | I48: =Be!I239 -> 0 | J48: =Be!J239 -> 0 | L48: =Be!A232 -> 0
A49: 47. | B49: =Be!A248 -> 0 | C49: =Be!B248 -> 0 | D49: =Be!D248 -> 0 | E49: =Be!E248 -> 0 | F49: =Be!F248 -> 0 | G49: =Be!G248 -> 0 | H49: =Be!H248 -> 0 | I49: =Be!I248 -> 0 | J49: =Be!J248 -> 0 | L49: =Be!A242 -> 0
A50: 48. | B50: =Be!A249 -> 0 | C50: =Be!B249 -> 0 | D50: =Be!D249 -> 0 | E50: =Be!E249 -> 0 | F50: =Be!F249 -> 0 | G50: =Be!G249 -> 0 | H50: =Be!H249 -> 0 | I50: =Be!I249 -> 0 | J50: =Be!J249 -> 0 | L50: =Be!A242 -> 0
A51: 49. | B51: =Be!A32 -> 0 | C51: =Be!B32 -> 0 | D51: =Be!D32 -> 0 | E51: =Be!E32 -> 0 | F51: =Be!F32 -> 0 | G51: =Be!G32 -> 0 | H51: =Be!H32 -> 0 | I51: =Be!I32 -> 0 | J51: =Be!J32 -> 0 | L51: =Be!L32 -> 0
A52: 50. | B52: =Be!A33 -> 0 | C52: =Be!B33 -> 0 | D52: =Be!D33 -> 0 | E52: =Be!E33 -> 0 | F52: =Be!F33 -> 0 | G52: =Be!G33 -> 0 | H52: =Be!H33 -> 0 | I52: =Be!I33 -> 0 | J52: =Be!J33 -> 0 | L52: =Be!L33 -> 0
A53: 51. | B53: =Be!A34 -> 0 | C53: =Be!B34 -> 0 | D53: =Be!D34 -> 0 | E53: =Be!E34 -> 0 | F53: =Be!F34 -> 0 | G53: =Be!G34 -> 0 | H53: =Be!H34 -> 0 | I53: =Be!I34 -> 0 | J53: =Be!J34 -> 0 | L53: =Be!L34 -> 0
A54: 52. | B54: =Be!A35 -> 0 | C54: =Be!B35 -> 0 | D54: =Be!D35 -> 0 | E54: =Be!E35 -> 0 | F54: =Be!F35 -> 0 | G54: =Be!G35 -> 0 | H54: =Be!H35 -> 0 | I54: =Be!I35 -> 0 | J54: =Be!J35 -> 0 | L54: =Be!L35 -> 0
A55: 53. | B55: =Be!A36 -> 0 | C55: =Be!B36 -> 0 | D55: =Be!D36 -> 0 | E55: =Be!E36 -> 0 | F55: =Be!F36 -> 0 | G55: =Be!G36 -> 0 | H55: =Be!H36 -> 0 | I55: =Be!I36 -> 0 | J55: =Be!J36 -> 0 | L55: =Be!L36 -> 0
A56: 54. | B56: =Be!A37 -> 0 | C56: =Be!B37 -> 0 | D56: =Be!D37 -> 0 | E56: =Be!E37 -> 0 | F56: =Be!F37 -> 0 | G56: =Be!G37 -> 0 | H56: =Be!H37 -> 0 | I56: =Be!I37 -> 0 | J56: =Be!J37 -> 0 | L56: =Be!L37 -> 0
A57: 55. | B57: =Be!A38 -> 0 | C57: =Be!B38 -> 0 | D57: =Be!D38 -> 0 | E57: =Be!E38 -> 0 | F57: =Be!F38 -> 0 | G57: =Be!G38 -> 0 | H57: =Be!H38 -> 0 | I57: =Be!I38 -> 0 | J57: =Be!J38 -> 0 | L57: =Be!L38 -> 0
A58: 56. | B58: =Be!A39 -> 0 | C58: =Be!B39 -> 0 | D58: =Be!D39 -> 0 | E58: =Be!E39 -> 0 | F58: =Be!F39 -> 0 | G58: =Be!G39 -> 0 | H58: =Be!H39 -> 0 | I58: =Be!I39 -> 0 | J58: =Be!J39 -> 0 | L58: =Be!L39 -> 0
